{"text_format":"1","workbook":"xlsx","n_sheets":49,"sheets":["modProv","Инструкция","Лог обновления","Титульный","Территории","Дифференциация","Форма 1.0.1","Форма 3.8","Сведения об изменении","Форма 1.0.2","Комментарии","Проверка","modReestr","AllSheetsInThisWorkbook","TEHSHEET","modCheckCyan","modInfo","et_union_hor","et_union_vert","modList00","modList01","modList02","modList03","modList04","modList07","modList09","modHTTP","modfrmRegion","MR_LIST","REESTR_VT","REESTR_VED","modfrmReestrObj","DataOrg","modfrmReestr","modUpdTemplMain","REESTR_ORG","modClassifierValidate","modHyp","modfrmDateChoose","modComm","modThisWorkbook","REESTR_MO","REESTR_MO_FILTER","modfrmReestrMR","modServiceModule","modfrmCheckUpdates","REESTR_DS","REESTR_CHS","REESTR_LINK"],"not_rendered":{"charts":0,"images":22,"macros":1,"external_links":0,"defined_names":173,"comments":3,"pivot_tables":0},"unopened":[],"bounds":{"document_bytes":16777216,"sheet_cells":100000,"rows_first":2000,"rows_last":500,"rows_between":2000,"halvings":0,"cell_chars":16384,"cell_head_chars":4096},"cells_cut":0,"cells_raw":0,"read":"whole","date_system":"1900"}

{"sheet":"modProv","index":0,"n_rows":0,"n_cols":0,"rows_kept":0,"cut":false,"hidden":true,"merged":[]}

{"sheet":"Инструкция","index":1,"n_rows":83,"n_cols":27,"rows_kept":83,"cut":false,"hidden":false,"merged":[[34,4,38,23],[22,15,22,22],[21,5,21,12],[1,1,1,6],[2,1,2,2],[4,1,4,24],[6,4,18,23],[20,5,20,12],[20,15,20,23],[21,15,21,23],[39,4,39,23],[40,4,44,23],[45,4,56,23],[80,5,80,18],[58,4,58,6],[58,7,58,23],[59,4,59,6],[71,5,71,23],[57,4,57,20],[70,4,70,19],[82,5,82,23],[60,7,60,23],[78,4,78,23],[72,5,72,23],[73,5,73,23],[74,4,74,23],[75,4,75,23],[76,4,76,23],[77,4,77,23],[69,4,69,19]]}
[null,null,null,null,null,null,null,null,null,null,null,null,null,null,null,null,null,null,null,null,null,null,null,null,null,null," (требуется обновление)"]
[null,{"$f":"\"Код шаблона: \" & GetCode()","v":"Код шаблона: FAS.JKH.OPEN.INFO.QUARTER.VO"}]
[null,{"$f":"\"Версия \" & Getversion()","v":"Версия 1.0.1"}]
[]
[null,{"$f":"Титульный!E5","v":"Информация о наличии (отсутствии) технической возможности подключения к централизованной системе водоотведения, а также о регистрации и ходе реализации заявок о подключении к централизованной системе водоотведения"}]
[]
[null,null,null,null,"• На рабочем месте должен быть установлен MS Office 2007 SP3, 2010, 2013, 2016 с полной версией MS Excel\n\n• Макросы во время работы должны быть включены (!)\n\n• Для корректной работы отчёта требуется выбрать низкий уровень безопасности\n(В меню MS Excel 2007/2010/2013/2016: Параметры Excel | Центр управления безопасностью | Параметры центра управления безопасностью | Параметры макросов | Включить все макросы | ОК)\n\n• Если Вы работаете в табличном процессоре MS Excel 2007 и выше, то можете использовать для работы формат XLSB (Двоичная книга Excel). При работе в формате XLSB заметно быстрее происходит сохранение файла, а также уменьшается размер по сравнению с форматами XLS и XLSM\n\n• Не рекомендуется снимать защиту с листов и каким-либо образом модифицировать защищаемые формулы и расчётные поля, в противном случае, отчёт будет отклонён системой\n\n• При сохранении не следует выбирать формат XLSX (Книга Excel), так как в указанном формате макросы, необходимые для работы отчёта, безвозвратно удаляются"]
[]
[]
[]
[]
[]
[]
[]
[]
[]
[]
[]
[]
[]
[null,null,null,null,"A"," - не обязательные для заполнения",null,null,null,null,null,null,null,null,"A"," - с формулами и константами"]
[null,null,null,null,"A"," - обязательные для заполнения",null,null,null,null,null,null,null,null,"A"," - с выбором значений до двойному клику"]
[]
[]
[]
[]
[]
[]
[]
[]
[]
[]
[]
[]
[null,null,null,null,"Если в предложенном Вам списке необходимая организация, МР/МО отсутствуют, обновите реестры с помощью кнопок\n\nВ результате синхронизации с базой данных список организаций (МР/МО) будет заменён актуальным (механизм синхронизации требует подключения к сети Интернет и основан на использовании протокола HTTPS (TCP порт 443))\n\nЕсли после обновления Вам не удалось найти необходимую организацию в списке, обратитесь к ответственному за поддержание реестра Вашего региона."]
[]
[]
[]
[]
[]
[]
[]
[]
[]
[]
[null,null,null,null,"• При сохранении шаблона осуществляется проверка корректности данных, в том числе на наличие значений в ячейках, обязательных для заполнения\n\n• Если какая-то ячейка не удовлетворяет условию проверки, на лист «Проверка» добавляется гиперссылка на данную ячейку и указывается причина ошибки\n\n• В колонке «Статус» для каждого сообщения возможны 2 значения: ошибка и предупреждение\n\n• При наличии сообщений со статусом «Ошибка» шаблон будет отклонён системой и не будет загружен в хранилище данных, сообщения со статусом «Предупреждение» носят информационный характер, и такой шаблон будет принят системой"]
[]
[]
[]
[]
[]
[]
[]
[]
[]
[]
[]
[null,null,null,null,"Обратиться за помощью в службу технической поддержки"]
[]
[]
[]
[]
[]
[]
[]
[]
[]
[]
[]
[null,null,null,null,"Инструкция по загрузке сопроводительных материалов"]
[null,null,null,null,"Инструкция по работе с отчетной формой"]
[]
[]
[]
[]
[]
[]
[]
[null,null,null,null,"При наличии подключения к Интернет, можно автоматически проверять наличие доступных обновлений. Выберите способ оповещения о наличии обновлений для отчёта:"]
[]
[null,null,null,null,null,"проверять доступные обновления (рекомендуется)",null,null,null,null,null,null,null,null,null,null,null,null,null,null,null,null,null,null,null,null,"y"]
[]
[null,null,null,null,null,"никогда не проверять наличие обновлений (не рекомендуется)"]

{"sheet":"Лог обновления","index":2,"n_rows":10,"n_cols":3,"rows_kept":10,"cut":false,"hidden":true,"merged":[]}
["Дата/Время","Сообщение","Статус"]
["2022-07-12T15:48:26","Проверка доступных обновлений...","Информация"]
["2022-07-12T15:52:08","Проверка доступных обновлений...","Информация"]
["2022-07-12T15:52:10","Нет доступных обновлений для отчёта с кодом FAS.JKH.OPEN.INFO.QUARTER.VO!","Информация"]
["2022-07-12T15:52:42","Проверка доступных обновлений...","Информация"]
["2022-07-12T15:52:45","Нет доступных обновлений для отчёта с кодом FAS.JKH.OPEN.INFO.QUARTER.VO!","Информация"]
["2022-07-12T15:54:39","Проверка доступных обновлений...","Информация"]
["2022-07-12T15:54:42","Нет доступных обновлений для отчёта с кодом FAS.JKH.OPEN.INFO.QUARTER.VO!","Информация"]
["2022-07-12T15:54:50","Проверка доступных обновлений...","Информация"]
["2022-07-12T15:54:52","Нет доступных обновлений для отчёта с кодом FAS.JKH.OPEN.INFO.QUARTER.VO!","Информация"]

{"sheet":"Титульный","index":3,"n_rows":39,"n_cols":6,"rows_kept":39,"cut":false,"hidden":false,"merged":[[4,4,4,5]]}
[null,null,null,null,null,26380015]
[]
[]
[null,null,null,null,null,{"$f":"version","v":"Версия 1.0.1"}]
[null,null,null,null,"Информация о наличии (отсутствии) технической возможности подключения к централизованной системе водоотведения, а также о регистрации и ходе реализации заявок о подключении к централизованной системе водоотведения"]
[]
[null,null,null,null,"Субъект РФ","Иркутская область"]
[]
[null,null,null,null,"Публикация2","На сайте регулирующего органа"]
[]
[null,null,null,null,"Отсутствует Интернет в границах территории МО, где организация осуществляет регулируемые виды деятельности","нет"]
[]
[null,null,null,null,"Тип отчета","первичное раскрытие информации"]
[null,null,null,null,"Дата внесения изменений в информацию, подлежащую раскрытию","12.07.2022"]
[]
[null,null,null,null,"Применяется дифференциация тарифа по централизованным системам теплоснабжения?"]
[null,null,null,null,"Информация по скольким централизованным системам теплоснабжения будет заполнена в шаблоне?"]
[]
[null,null,null,null,null,"Отчетный период"]
[null,null,2022,null,"Год",2022]
[null,null,"II квартал",null,"Квартал","II квартал"]
[]
[null,null,null,null,"Является ли данное юридическое лицо подразделением (филиалом) другой организации","нет"]
[]
[]
[null,null,null,null,"Наименование организации","АО \"Саянскхимпласт\""]
[null,null,null,null,"Наименование филиала"]
[null,null,null,null,"ИНН","3814007314"]
[null,null,null,null,"КПП","381401001"]
[null,null,null,null,"Вид деятельности"]
[]
[null,null,null,null,"Почтовый адрес регулируемой организации","666301, Иркутская обл., г. Саянск, а/я-17"]
[null,null,null,null,"Фамилия, имя, отчество руководителя","Мельник Николай Викторович"]
[]
[null,null,null,null,null,"Ответственный за составление формы"]
[null,null,null,null,"Фамилия, имя, отчество","Выборова Людмила Викторовна"]
[null,null,null,null,"Должность","главный специалист"]
[null,null,null,null,"(код) номер телефона","8(39553)45261"]
[null,null,null,null,"e-mail","lvyborov@sibvinyl.ru"]

{"sheet":"Территории","index":4,"n_rows":17,"n_cols":18,"rows_kept":17,"cut":false,"hidden":false,"merged":[[12,7,14,7],[11,2,15,2],[11,3,15,3],[11,4,15,4],[12,5,14,5],[12,6,14,6],[8,5,8,6],[8,8,8,9],[9,5,9,6],[9,8,9,9],[3,3,3,7],[5,3,5,4],[5,5,5,6],[7,3,7,4],[7,5,7,7],[7,8,7,11]]}
[null,null,null,null,null,null,null,null,null,null,"МО","ОКТМО","МР"]
[]
[]
[null,null,null,"Перечень муниципальных районов и муниципальных образований (территорий действия тарифа)"]
[]
[null,null,null,null,null,"да"]
[]
[null,null,null,"Территория действия тарифа",null,"Муниципальный район",null,null,"Муниципальное образование"]
[null,null,null,"№ п/п","Наименование","№ п/п",null,"Наименование","№ п/п",null,"Наименование","ОКТМО"]
[null,null,null,"1","2","3",null,"4","5",null,"6","7"]
[null,null,null,0,null,"",null,null,"",null,null,null,"размерженный МР",null,null,"флаг используемости территории на листе Перечень тарифов","копия территорий","МР (ОКТМО)"]
[null,"auto",null,1,"город Саянск, город Саянск (25726000);","",0,null,"","0",null,null,{"$f":"mergeValue(H12)","v":0},null,null,{"$f":"IF(ISERROR(MATCH(MID(Q12,1,250),MID(note_ter,1,250),0)),\"n\",\"y\")","v":"y"},"город Саянск, город Саянск (25726000);",{"$f":"K12&\"(\"&L12&\")\"","v":"()"}]
[null,"auto",null,null,null,"",1,"город Саянск","","0",null,null,{"$f":"mergeValue(H13)","v":"город Саянск"},null,null,null,null,{"$f":"K13&\"(\"&L13&\")\"","v":"()"}]
[null,"auto",null,null,null,null,null,null,"",1,"город Саянск","25726000",{"$f":"mergeValue(H14)","v":"город Саянск"},null,null,null,null,{"$f":"K14&\" (\"&L14&\")\"","v":"город Саянск (25726000)"}]
[null,null,null,null,null,null,null,null,"",null,""]
[null,null,null,null,null,"","","",""]
[null,"man",null,null,"","",null,null,"",null,null,null,null,null,null,null,"Добавить территорию действия тарифа"]

{"sheet":"Дифференциация","index":5,"n_rows":26,"n_cols":26,"rows_kept":26,"cut":false,"hidden":false,"merged":[[21,9,22,9],[17,9,17,12],[19,6,19,7],[19,10,19,11],[18,10,18,11],[18,6,18,7],[24,2,25,2],[11,1,11,3],[12,1,12,3],[21,4,23,4],[21,5,23,5],[21,3,23,3],[17,5,17,8],[21,6,22,6],[21,7,22,7],[21,8,22,8],[17,0,18,0],[17,3,17,4],[3,3,3,8],[4,3,4,8],[7,4,7,5],[8,1,8,3],[5,0,6,5],[7,1,7,3],[8,4,8,5],[9,1,9,3],[9,4,9,5],[13,1,13,3],[10,4,10,5],[10,1,10,3]]}
[]
[]
[]
[null,null,null,{"$f":"Титульный!E5","v":"Информация о наличии (отсутствии) технической возможности подключения к централизованной системе водоотведения, а также о регистрации и ходе реализации заявок о подключении к централизованной системе водоотведения"}]
[null,null,null,{"$f":"IF(org=0,\"Не определено\",org)","v":"АО \"Саянскхимпласт\""}]
[]
[]
[]
[]
[]
[]
[]
[]
[]
[]
[]
[]
[null,null,null,"Вид деятельности",null,"Дифференциация по территориям оказания услуг",null,null,null,"Дифференциация по централизованным системам коммунальной инфраструктуры"]
[null,null,null,"№ п/п","Наименование","да/нет","№ п/п",null,"Наименование","да/нет","№ п/п",null,"Наименование"]
[null,null,null,"1","2","3","4",null,"5","6","7",null,"8"]
[]
[null,null,null,"1","Транспортировка","да",null,1,"город Саянск, город Саянск (25726000);","да","","1","транспортировка",null,null,null,null,null,null,null,null,null,null,4189713,"a",1705000]
[null,null,null,null,null,null,null,null,null,null,"",null,""]
[null,null,null,null,null,null,null,null,"",null,""]
[null,null,null,null,"",null,null,null,null,null,""]
[null,null,null,null,null,null,null,null,null,null,""]

{"sheet":"Форма 1.0.1","index":6,"n_rows":20,"n_cols":7,"rows_kept":20,"cut":false,"hidden":false,"merged":[[19,4,19,5],[4,3,4,6],[5,3,5,6],[7,3,7,6],[8,3,8,5],[8,6,9,6]]}
[null,null,null,null,null,null,4]
[]
[]
[]
[null,null,null,"Форма 1.0.1 Основные параметры раскрываемой информации 1"]
[null,null,null,{"$f":"IF(org=0,\"Не определено\",org)","v":"АО \"Саянскхимпласт\""}]
[]
[null,null,22,"Форма 1.0.1"]
[null,null,null,"Параметры формы",null,null,"Описание параметров формы"]
[null,null,null,"№ п/п","Наименование параметра","Информация"]
[null,null,null,"1",2,3,4]
[null,null,null,1,"Дата заполнения/внесения изменений",{"$f":"IF(form_up_date=\"\",\"\",form_up_date)","v":"12.07.2022"},"Указывается календарная дата первичного заполнения или внесения изменений в форму в виде «ДД.ММ.ГГГГ»."]
[null,null,null,"2.1","Наименование централизованной системы коммунальной инфраструктуры","транспортировка","Указывается наименование централизованной системы холодного водоснабжения/горячего водоснабжения/водоотведения/теплоснабжения, к которой относится размещаемая информация.\nВ случае наличия нескольких централизованных систем коммунальной инфраструктуры, информация по каждой из них указывается в отдельной строке. "]
[null,null,null,"3.1","Наименование регулируемого вида деятельности","Транспортировка","Указывается наименование вида регулируемой деятельности."]
[null,null,null,"4.1","Территория оказания услуги по регулируемому виду деятельности","x"]
[null,null,null,{"$f":"D15&\".1\"","v":"4.1.1"},"Субъект РФ",{"$f":"IF(region_name=\"\",\"\",region_name)","v":"Иркутская область"},"Указывается наименование субъекта Российской Федерации"]
[null,null,null,"4.1.1.1","муниципальный район","город Саянск","Указывается наименование муниципального района, на территории которого организация оказывает услуги по регулируемому виду деятельности."]
[null,null,null,"4.1.1.1.1","муниципальное образование","город Саянск (25726000)","Указывается наименование и код муниципального района, муниципального образования в соответствии с Общероссийским классификатором территорий муниципальных образований (далее - ОКТМО), входящего в муниципальный район, на территории которого организация оказывает услуги по регулируемому виду деятельности.\nВ случае оказания услуг по регулируемому виду деятельности на территории нескольких муниципальных районов (муниципальных образований) данные по каждому их них указываются в отдельной строке."]
[]
[null,null,null,null,"  1 Информация по данной форме публикуется при раскрытии информации по каждой из форм."]

{"sheet":"Форма 3.8","index":7,"n_rows":18,"n_cols":8,"rows_kept":18,"cut":false,"hidden":false,"merged":[[7,7,8,7],[4,3,4,6],[5,3,5,6],[7,3,8,3],[7,4,8,4],[7,5,8,5]]}
[null,null,null,null,null,null,4]
[null,null,null,null,null,"тыс.куб.м/сутки",null,"Указывается резерв мощности для централизованной системы водоотведения, тариф для которой не является отличным от тарифов других централизованных систем водоотведения регулируемой организации.\nПри использовании регулируемой организацией нескольких централизованных систем водоотведения информация о резерве мощности таких систем указывается в отношении каждой централизованной системы водоотведения в отдельных строках."]
[]
[]
[null,null,null,{"$f":"Титульный!E5","v":"Информация о наличии (отсутствии) технической возможности подключения к централизованной системе водоотведения, а также о регистрации и ходе реализации заявок о подключении к централизованной системе водоотведения"}]
[null,null,null,{"$f":"IF(org=0,\"Не определено\",org)","v":"АО \"Саянскхимпласт\""}]
[null,null,null,null,null,null,22]
[null,null,null,"№ п/п","Наименование параметра","Единица измерения","Вид деятельности:\r\n  - Транспортировка\r\n\r\nТерритория оказания услуг:\r\n  - город Саянск, город Саянск (25726000);\r\n\r\nЦентрализованная система водоотведения:\r\n  - транспортировка","Описание параметров формы"]
[null,null,null,null,null,null,"Информация"]
[null,null,null,"1","2","3",{"$f":"G1&\".1\"","v":"4.1"}]
[null,null,null,1,"Количество поданных заявок","ед",0,"Указывается количество поданных заявок на подключение (технологическое присоединение) к централизованной системе водоотведения в течение отчетного квартала."]
[null,null,null,2,"Количество исполненных заявок","ед",0,"Указывается количество исполненных заявок на подключение (технологическое присоединение) к централизованной системе водоотведения в течение отчетного квартала."]
[null,null,null,3,"Количество заявок с решением об отказе в подключении","ед",0,"Указывается количество заявок с решением об отказе о подключении (технологическому присоединению) к централизованной системе водоотведения в течение отчетного квартала."]
[null,null,null,4,"Причины отказа в подключении","x",null,"Указывается текстовое описание причин принятия решения об отказе в подключении (технологическом присоединении) к централизованной системе водоотведения.\nНе заполняется в случае, если решения об отказе в подключении (технологическом присоединении) в течение отчетного периода не принимались."]
[null,null,null,5,"Резерв мощности централизованной системы водоотведения в течение квартала, в том числе:","тыс.куб.м/сутки",{"$f":"SUM(G16:G18)","v":0},"Указывается резерв мощности централизованной системы водоотведения (совокупности централизованных систем водоотведения) в случае, если для них установлены одинаковые тарифы в сфере водоотведения.\nВ случае если регулируемыми организациями оказываются услуги по водоотведению по нескольким технологически не связанным между собой централизованным системам водоотведения, и если в отношении указанных систем устанавливаются различные тарифы в сфере водоотведения, то информация раскрывается отдельно по каждой централизованной системе водоотведения."]
[null,null,null,"5.0"]
[null,null,null,"5.1","Транспортировка","тыс.куб.м/сутки",0,"Указывается резерв мощности для централизованной системы водоотведения, тариф для которой не является отличным от тарифов других централизованных систем водоотведения регулируемой организации.\nПри использовании регулируемой организацией нескольких централизованных систем водоотведения информация о резерве мощности таких систем указывается в отношении каждой централизованной системы водоотведения в отдельных строках."]
[null,null,null,null,"Добавить централизованную систему водоотведения"]

{"sheet":"Сведения об изменении","index":8,"n_rows":14,"n_cols":5,"rows_kept":14,"cut":false,"hidden":true,"merged":[[6,3,6,4],[7,3,7,4]]}
[]
[]
[]
[]
[]
[]
[null,null,null,"Сведения об изменениях в первоначально опубликованной информации"]
[null,null,null,{"$f":"IF(org=0,\"Не определено\",org)","v":"АО \"Саянскхимпласт\""}]
[]
[null,null,null,"№ п/п","Сведения"]
[null,null,null,"1","2"]
[null,null,null,0]
[null,null,null,1]
[null,null,null,null,"Добавить строку"]

{"sheet":"Форма 1.0.2","index":9,"n_rows":15,"n_cols":13,"rows_kept":15,"cut":false,"hidden":true,"merged":[[11,10,12,10],[14,4,14,9],[4,3,4,9],[7,3,7,9],[7,10,9,10],[8,3,9,3],[8,4,8,5],[8,6,8,9]]}
[]
[]
[]
[]
[null,null,null,"Форма 1.0.2 Информация о публикации в печатных изданиях 2"]
[]
[]
[null,null,null,"Параметры формы",null,null,null,null,null,null,"Описание параметров формы"]
[null,null,null,"№ п/п","Форма публикации",null,"Официальное печатное издание"]
[null,null,null,null,"Номер","Наименование","Наименование","Номер","Дата выпуска","Ссылка на документ"]
[null,null,null,"1","2","3","4","5","6","7","8"]
["3","",null,"1",null,null,null,null,null,null,"В колонке «Дата выпуска» дата выпуска печатного издания указывается в виде «ДД.ММ.ГГГГ».\nВ колонке «Ссылка на документ» указывается ссылка на отсканированную копию печатного издания, предварительно загруженную в хранилище федеральной государственной информационной системы «Единая информационно-аналитическая система «Федеральный орган регулирования - региональные органы регулирования - субъекты регулирования» (далее – ФГИС ЕИАС), с опубликованной информацией.\nВ случае публикации информации в нескольких печатных изданиях информация по каждому из них указывается в отдельной строке.",null,{"$f":"IF(ISERROR(INDEX(kind_of_nameforms,MATCH(E12,kind_of_forms,0),1)),\"\",INDEX(kind_of_nameforms,MATCH(E12,kind_of_forms,0),1))","v":""}]
[null,null,null,null,"Добавить строку"]
[]
[null,null,null,null,"2 В данной форме публикуется информация по каждой из форм раскрытия, данные в которой относятся к муниципальному образованию, в котором отсутствует доступ в информационно-телекоммуникационную сеть «Интернет» (далее – сеть «Интернет»)."]

{"sheet":"Комментарии","index":10,"n_rows":13,"n_cols":5,"rows_kept":13,"cut":false,"hidden":false,"merged":[[6,3,6,4],[7,3,7,4]]}
[]
[]
[]
[]
[]
[]
[null,null,null,"Комментарии"]
[null,null,null,{"$f":"IF(org=0,\"Не определено\",org)","v":"АО \"Саянскхимпласт\""}]
[]
[null,null,null,"№ п/п","Комментарий"]
[null,null,null,"1","2"]
[null,null,null,0]
[null,null,null,null,"Добавить"]

{"sheet":"Проверка","index":11,"n_rows":4,"n_cols":5,"rows_kept":4,"cut":false,"hidden":false,"merged":[[1,1,1,4]]}
[]
[null,"Результат проверки"]
[]
[null,"Ссылка1","Ссылка2","Причина","Статус"]

{"sheet":"modReestr","index":12,"n_rows":0,"n_cols":0,"rows_kept":0,"cut":false,"hidden":true,"merged":[]}

{"sheet":"AllSheetsInThisWorkbook","index":13,"n_rows":39,"n_cols":2,"rows_kept":39,"cut":false,"hidden":true,"merged":[]}
["Расчетные листы","Скрытые листы"]
["Инструкция","modProv"]
["Лог обновления","modReestr"]
["Титульный","AllSheetsInThisWorkbook"]
["Территории","TEHSHEET"]
["Дифференциация","modCheckCyan"]
["Форма 1.0.1","modInfo"]
["Форма 3.8","et_union_hor"]
["Сведения об изменении","et_union_vert"]
["Форма 1.0.2","modList00"]
["Комментарии","modList01"]
["Проверка","modList02"]
[null,"modList03"]
[null,"modList04"]
[null,"modList07"]
[null,"modList09"]
[null,"modHTTP"]
[null,"modfrmRegion"]
[null,"MR_LIST"]
[null,"REESTR_VT"]
[null,"REESTR_VED"]
[null,"modfrmReestrObj"]
[null,"DataOrg"]
[null,"modfrmReestr"]
[null,"modUpdTemplMain"]
[null,"REESTR_ORG"]
[null,"modClassifierValidate"]
[null,"modHyp"]
[null,"modfrmDateChoose"]
[null,"modComm"]
[null,"modThisWorkbook"]
[null,"REESTR_MO"]
[null,"REESTR_MO_FILTER"]
[null,"modfrmReestrMR"]
[null,"modServiceModule"]
[null,"modfrmCheckUpdates"]
[null,"REESTR_DS"]
[null,"REESTR_CHS"]
[null,"REESTR_LINK"]

{"sheet":"TEHSHEET","index":14,"n_rows":87,"n_cols":20,"rows_kept":87,"cut":false,"hidden":true,"merged":[[0,18,0,19]]}
["REGION",null,"year_list","logical","Месяц\n(MONTH)","Квартал\n(QUARTER)","Месяц\n(kind_of_publication)","Единица измерения объема оказываемых услуг ГВС\n/kind_of_unit_GVS/","Вид тарифа\n/list_of_tariff/","mr_id","версия шаблона\n (DocProp_Version)","0.1","Тип отчета\ndata_type",null,null,null,null,null,"Перечень форм\n(kind_of_forms)"]
["Алтайский край",null,2015,"да","январь","I квартал","На официальном сайте организации","тыс.куб.м/сутки",null,52,"код шаблона\n(DocProp_TemplateCode)","FAS.JKH.OPEN.INFO.QUARTER.VO","первичное раскрытие информации",null,null,null,null,null,"Форма 1.0.1","Основные параметры раскрываемой информации"]
["Амурская область",null,2016,"нет","февраль","II квартал","На сайте регулирующего органа","Гкал/час","Без дифференциации","sys_id","сфера\n(TSphere)","ВО","изменения в раскрытой ранее информации",null,null,null,null,null,"Форма 3.8",{"$f":"Титульный!E5","v":"Информация о наличии (отсутствии) технической возможности подключения к централизованной системе водоотведения, а также о регистрации и ходе реализации заявок о подключении к централизованной системе водоотведения"}]
["Архангельская область",null,2017,null,"март","III квартал",null,"куб.м/час",null,104,"сфера(латиница)\n(TSphere_trans)","VO"]
["Астраханская область",null,2018,null,"апрель","IV квартал",null,null,null,null,"сфера расширено\n(TSphere_full)"]
["Белгородская область",null,2019,null,"май"]
["Брянская область",null,2020,null,"июнь"]
["Владимирская область",null,2021,null,"июль",null,null,null,null,null,"true"]
["Волгоградская область",null,2022,null,"август"]
["Вологодская область",null,null,null,"сентябрь"]
["Воронежская область",null,null,null,"октябрь"]
["г.Байконур",null,null,null,"ноябрь"]
["г. Москва",null,null,null,"декабрь"]
["г.Санкт-Петербург"]
["г.Севастополь"]
["Еврейская автономная область",null,null,null,null,null,"Текущая дата"]
["Забайкальский край",null,"Организация",{"$f":"IF(f_year = \"\",\"\", IF(LEN(f_quart)=0,\"\",IF(f_quart=\"I квартал\", \"01.01.\"&f_year,IF(f_quart=\"II квартал\",\"01.04.\"&f_year,(IF(f_quart=\"III квартал\", \"01.07.\"&f_year,\"01.10.\"&f_year)))) ))","v":"01.04.2022"},{"$f":"IF(f_year = \"\",\"\", IF(LEN(f_quart)=0,\"\",IF(f_quart=\"I квартал\", \"31.03.\"& f_year,IF(f_quart=\"II квартал\",\"30.06.\"& f_year,(IF(f_quart=\"III квартал\", \"30.09.\"& f_year,\"31.12.\"& f_year)))) ))","v":"30.06.2022"},null,"12.07.2022 15:54:50"]
["Ивановская область"]
["Иркутская область",null,null,null,null,null,"Признак изменения данных на листе Доступ к товарам и услугам"]
["Кабардино-Балкарская республика",null,"Виды деятельности",null,null,null,true]
["Калининградская область"]
["Калужская область"]
["Камчатский край"]
["Карачаево-Черкесская республика"]
["Кемеровская область"]
["Кировская область"]
["Костромская область"]
["Краснодарский край"]
["Красноярский край"]
["Курганская область"]
["Курская область"]
["Ленинградская область"]
["Липецкая область"]
["Магаданская область"]
["Московская область"]
["Мурманская область"]
["Ненецкий автономный округ"]
["Нижегородская область"]
["Новгородская область"]
["Новосибирская область"]
["Омская область"]
["Оренбургская область"]
["Орловская область"]
["Пензенская область"]
["Пермский край"]
["Приморский край"]
["Псковская область"]
["Республика Адыгея"]
["Республика Алтай"]
["Республика Башкортостан"]
["Республика Бурятия"]
["Республика Дагестан"]
["Республика Ингушетия"]
["Республика Калмыкия"]
["Республика Карелия"]
["Республика Коми"]
["Республика Крым"]
["Республика Марий Эл"]
["Республика Мордовия"]
["Республика Саха (Якутия)"]
["Республика Северная Осетия-Алания"]
["Республика Татарстан"]
["Республика Тыва"]
["Республика Хакасия"]
["Ростовская область"]
["Рязанская область"]
["Самарская область"]
["Саратовская область"]
["Сахалинская область"]
["Свердловская область"]
["Смоленская область"]
["Ставропольский край"]
["Тамбовская область"]
["Тверская область"]
["Томская область"]
["Тульская область"]
["Тюменская область"]
["Удмуртская республика"]
["Ульяновская область"]
["Хабаровский край"]
["Ханты-Мансийский автономный округ"]
["Челябинская область"]
["Чеченская республика"]
["Чувашская республика"]
["Чукотский автономный округ"]
["Ямало-Ненецкий автономный округ"]
["Ярославская область"]

{"sheet":"modCheckCyan","index":15,"n_rows":10,"n_cols":1,"rows_kept":10,"cut":false,"hidden":true,"merged":[]}
[]
[{"$f":"IF('Сведения об изменении'!$E$13=\"\",1,0)","v":1}]
[{"$f":"IF(Дифференциация!$E$22=\"\",1,0)","v":0}]
[{"$f":"IF(Территории!$E$12=\"\",1,0)","v":0}]
[{"$f":"IF(Дифференциация!$I$22=\"\",1,0)","v":0}]
[{"$f":"IF(Дифференциация!$M$22=\"\",1,0)","v":0}]
[{"$f":"IF('Форма 3.8'!$G$11=\"\",1,0)","v":0}]
[{"$f":"IF('Форма 3.8'!$G$12=\"\",1,0)","v":0}]
[{"$f":"IF('Форма 3.8'!$G$13=\"\",1,0)","v":0}]
[{"$f":"IF('Форма 3.8'!$E$17=\"\",1,0)","v":0}]

{"sheet":"modInfo","index":16,"n_rows":11,"n_cols":2,"rows_kept":11,"cut":false,"hidden":true,"merged":[[4,3,4,10],[0,3,0,10],[1,3,1,10],[2,3,2,10],[3,3,3,10]]}
[null,"Территории"]
[1,"Наименование территории оказания услуг для целей идентификации"]
[2,"Муниципальные районы и муниципальные образования, на территории которых осуществляется оказание услуг"]
[null,"Дифференциация"]
[1,"В случае, если регулируемая организация осуществляет несколько видов деятельности, информация о которых подлежит раскрытию, информация по каждому виду деятельности раскрывается отдельно."]
[2,"Поле заполняется выбором значений из списка. Если значений для выбора нет - убедитесь, что лист \"Территории\" заполнен."]
[3,"Условное наименование централизованной системы коммунальной инфраструктуры для целей идентификации."]
[4,"В случае, если регулируемыми организациями оказываются услуги по нескольким технологически не связанным между собой  централизованным системам коммунальной инфраструктуры и если в отношении указанных централизованных систем устанавливаются различные тарифы, то информация раскрывается отдельно по каждой централизованной системе коммунальной инфраструктуры."]
[null,"Сведения об изменении"]
[1,"Лист заполняется в случае, если на Титульном листе в поле \"Тип отчета\" выбрано значение «Изменения в раскрытой ранее информации»."]
[null,"Нет доступных обновлений, версия отчёта актуальна"]

{"sheet":"et_union_hor","index":17,"n_rows":60,"n_cols":26,"rows_kept":60,"cut":false,"hidden":true,"merged":[[50,3,50,5],[50,6,51,6],[14,2,15,2],[14,3,15,3],[14,4,15,4],[19,2,20,2],[19,5,20,5],[34,6,35,6],[19,6,20,6],[49,3,49,6],[34,7,35,7],[34,8,35,8],[34,9,35,9],[28,8,29,8],[28,9,29,9],[19,7,20,7],[28,3,30,3],[28,4,30,4],[28,5,30,5],[28,6,29,6],[28,7,29,7]]}
[]
[]
["et_Comm"]
[]
[]
[]
["et_List04"]
[]
[]
[]
[]
[]
["et_List09_0"]
[]
[null,"auto",null,1,null,null,0,null,null,"0",null,null,{"$f":"mergeValue(H15)","v":0},null,null,{"$f":"IF(ISERROR(MATCH(MID(Q15,1,250),MID(note_ter,1,250),0)),\"n\",\"y\")","v":"y"},null,{"$f":"K15&\"(\"&L15&\")\"","v":"()"}]
[null,null,null,null,null,null,null,"Добавить МР"]
[]
["et_List09_1"]
[]
[null,"auto",null,null,null,null,0,null,null,"0",null,null,{"$f":"mergeValue(H20)","v":0},null,null,null,null,{"$f":"K20&\"(\"&L20&\")\"","v":"()"}]
[null,null,null,null,null,null,null,null,null,null,"Добавить МО"]
[]
["et_List09_2"]
[]
[null,"auto",null,null,null,null,null,null,null,0,null,null,{"$f":"mergeValue(H25)","v":0},null,null,null,null,{"$f":"K25&\" (\"&L25&\")\"","v":" ()"}]
[]
["et_List07_1"]
[]
[null,null,null,"1",null,"нет",null,1,null,"нет",null,"1",null,null,null,null,null,null,null,null,null,null,null,null,"a",1705000]
[null,null,null,null,null,null,null,null,null,null,null,null,"Добавить централизованную систему коммунальной инфраструктуры"]
[null,null,null,null,null,null,null,null,"Добавить описание территории оказания услуг"]
[]
["et_List07_4"]
[]
[null,null,null,null,null,null,null,1,null,"нет",null,"1",null,null,null,null,null,null,null,null,null,null,null,null,"a",1705000]
[null,null,null,null,null,null,null,null,null,null,null,null,"Добавить централизованную систему коммунальной инфраструктуры"]
[]
["et_List07_5"]
[]
[null,null,null,null,null,null,null,null,null,null,null,"1",null,null,null,null,null,null,null,null,null,null,null,null,"a",1705000]
[]
[]
["et_List03"]
[]
["3","",null,null,null,null,null,null,null,null,null,null,{"$f":"IF(ISERROR(INDEX(kind_of_nameforms,MATCH(E45,kind_of_forms,0),1)),\"\",INDEX(kind_of_nameforms,MATCH(E45,kind_of_forms,0),1))","v":""}]
[]
["et_List02_st","et_List02_ter","et_List02_mr","et_List02_mo"]
[]
[]
[null,null,null,"Форма 1.0.1"]
[null,null,null,"Параметры формы",null,null,"Описание параметров формы"]
[null,null,null,"№ п/п","Наименование параметра","Информация"]
[null,null,null,"1",2,3,4]
[null,null,null,1,"Дата заполнения/внесения изменений",{"$f":"IF(form_up_date=\"\",\"\",form_up_date)","v":"12.07.2022"},"Указывается календарная дата первичного заполнения или внесения изменений в форму в виде «ДД.ММ.ГГГГ»."]
[null,null,null,"2.1","Наименование централизованной системы коммунальной инфраструктуры",null,"Указывается наименование централизованной системы холодного водоснабжения/горячего водоснабжения/водоотведения/теплоснабжения, к которой относится размещаемая информация.\nВ случае наличия нескольких централизованных систем коммунальной инфраструктуры, информация по каждой из них указывается в отдельной строке. "]
[null,null,null,"3.1","Наименование регулируемого вида деятельности",null,"Указывается наименование вида регулируемой деятельности."]
[null,null,null,"4.1","Территория оказания услуги по регулируемому виду деятельности","x"]
[null,null,null,{"$f":"D57&\".1\"","v":"4.1.1"},"Субъект РФ",{"$f":"IF(region_name=\"\",\"\",region_name)","v":"Иркутская область"},"Указывается наименование субъекта Российской Федерации"]
[null,null,null,"4.1.1.1","муниципальный район",null,"Указывается наименование муниципального района, на территории которого организация оказывает услуги по регулируемому виду деятельности."]
[null,null,null,"4.1.1.1.1","муниципальное образование",null,"Указывается наименование и код муниципального района, муниципального образования в соответствии с Общероссийским классификатором территорий муниципальных образований (далее - ОКТМО), входящего в муниципальный район, на территории которого организация оказывает услуги по регулируемому виду деятельности.\nВ случае оказания услуг по регулируемому виду деятельности на территории нескольких муниципальных районов (муниципальных образований) данные по каждому их них указываются в отдельной строке."]

{"sheet":"et_union_vert","index":18,"n_rows":0,"n_cols":0,"rows_kept":0,"cut":false,"hidden":true,"merged":[]}

{"sheet":"modList00","index":19,"n_rows":0,"n_cols":0,"rows_kept":0,"cut":false,"hidden":true,"merged":[]}

{"sheet":"modList01","index":20,"n_rows":0,"n_cols":0,"rows_kept":0,"cut":false,"hidden":true,"merged":[]}

{"sheet":"modList02","index":21,"n_rows":0,"n_cols":0,"rows_kept":0,"cut":false,"hidden":true,"merged":[]}

{"sheet":"modList03","index":22,"n_rows":0,"n_cols":0,"rows_kept":0,"cut":false,"hidden":true,"merged":[]}

{"sheet":"modList04","index":23,"n_rows":0,"n_cols":0,"rows_kept":0,"cut":false,"hidden":true,"merged":[]}

{"sheet":"modList07","index":24,"n_rows":0,"n_cols":0,"rows_kept":0,"cut":false,"hidden":true,"merged":[[5,0,6,1],[17,0,18,0]]}

{"sheet":"modList09","index":25,"n_rows":0,"n_cols":0,"rows_kept":0,"cut":false,"hidden":true,"merged":[]}

{"sheet":"modHTTP","index":26,"n_rows":0,"n_cols":0,"rows_kept":0,"cut":false,"hidden":true,"merged":[]}

{"sheet":"modfrmRegion","index":27,"n_rows":0,"n_cols":0,"rows_kept":0,"cut":false,"hidden":true,"merged":[]}

{"sheet":"MR_LIST","index":28,"n_rows":0,"n_cols":0,"rows_kept":0,"cut":false,"hidden":true,"merged":[]}

{"sheet":"REESTR_VT","index":29,"n_rows":0,"n_cols":0,"rows_kept":0,"cut":false,"hidden":true,"merged":[]}

{"sheet":"REESTR_VED","index":30,"n_rows":4,"n_cols":2,"rows_kept":4,"cut":false,"hidden":true,"merged":[]}
["ID_TARIFF_NAME","VED_NAME"]
[4189714,"Водоотведение"]
[4189713,"Транспортировка"]
[4189712,"Подключение (технологическое присоединение) к централизованной системе водоотведения"]

{"sheet":"modfrmReestrObj","index":31,"n_rows":0,"n_cols":0,"rows_kept":0,"cut":false,"hidden":true,"merged":[]}

{"sheet":"DataOrg","index":32,"n_rows":0,"n_cols":0,"rows_kept":0,"cut":false,"hidden":true,"merged":[]}

{"sheet":"modfrmReestr","index":33,"n_rows":0,"n_cols":0,"rows_kept":0,"cut":false,"hidden":true,"merged":[]}

{"sheet":"modUpdTemplMain","index":34,"n_rows":0,"n_cols":0,"rows_kept":0,"cut":false,"hidden":true,"merged":[]}

{"sheet":"REESTR_ORG","index":35,"n_rows":163,"n_cols":10,"rows_kept":163,"cut":false,"hidden":true,"merged":[]}
["№","REGION_ID","REGION_NAME","RST_ORG_ID","ORG_NAME","INN_NAME","KPP_NAME","ORG_START_DATE","ORG_END_DATE"]
[1,"2661","Иркутская область","26372374","АО \"Ангарская нефтехимическая компания\"","3801009466","997250001","11-08-1993 00:00:00",null,"VO"]
[2,"2661","Иркутская область","26372375","АО \"Ангарский Электролизный Химический Комбинат\"","3801098402","380101001","01-09-2008 00:00:00",null,"VO"]
[3,"2661","Иркутская область","30358154","АО \"Главное управление жилищно-коммунального хозяйства\"","5116000922","381145001","13-05-2009 00:00:00",null,"VO"]
[4,"2661","Иркутская область","26536587","АО \"Группа \"Илим\"","7840346335","380402001","27-09-2006 00:00:00",null,"VO"]
[5,"2661","Иркутская область","26530833","АО \"Группа \"Илим\"","7840346335","381702001","27-09-2006 00:00:00",null,"VO"]
[6,"2661","Иркутская область","30947840","АО \"МАИРТА\"","3811067770","381101001","30-05-2001 00:00:00",null,"VO"]
[7,"2661","Иркутская область","26380015","АО \"Саянскхимпласт\"","3814007314","381401001","13-10-1998 00:00:00",null,"VO"]
[8,"2661","Иркутская область","26505643","АО \"Усолье-Сибирский химфармзавод\"","3819012188","385101001","02-09-2002 00:00:00",null,"VO"]
[9,"2661","Иркутская область","31061738","Акционерное общество \"Братский завод металлоконструкций\"","3805100042","380501001","11-01-1993 00:00:00",null,"VO"]
[10,"2661","Иркутская область","30881825","Акционерное общество работников народное предприятие \"Концессия-Илим\"","3817047971","381701001","31-01-2017 00:00:00",null,"VO"]
[11,"2661","Иркутская область","26375610","Восточно-Сибирская дирекция по тепловодоснабжению - структурное подразделение центральной дирекции по тепловодоснабжению филиала ОАО \"РЖД\"","7708503727","381045020","23-09-2003 00:00:00",null,"VO"]
[12,"2661","Иркутская область","26372430","ЗАО \"Санаторий Усть-Кут\"","3818000870","381801001",null,null,"VO"]
[13,"2661","Иркутская область","26381585","ИП Шаповалов В.Н.","850400333946","отсутствует","01-11-2007 00:00:00",null,"VO"]
[14,"2661","Иркутская область","31401664","КМП \"Автодор\" УКМО (ГП)","3818043560","381801001","07-12-2015 00:00:00",null,"VO"]
[15,"2661","Иркутская область","28086512","МП \"Дирекция городской инфраструктуры\" МО г. Братска","3804045543","380401001","09-06-2011 00:00:00",null,"VO"]
[16,"2661","Иркутская область","30383691","МП \"ЖКХ 2015\"","3817045068","381701001","17-07-2015 00:00:00",null,"VO"]
[17,"2661","Иркутская область","28445431","МУП \" ЖКХ Калтук\"","3847000561","384701001","17-04-2013 00:00:00","14-06-2022 00:00:00","VO"]
[18,"2661","Иркутская область","31252938","МУП \"Вихоревский городской транспорт\"","3805732122","380501001","15-12-2017 00:00:00",null,"VO"]
[19,"2661","Иркутская область","26372455","МУП \"Водоканал\"","3821005886","382101001","16-04-1994 00:00:00",null,"VO"]
[20,"2661","Иркутская область","26372399","МУП \"Водоканал\" г.Иркутска","3807000276","381150001","27-03-1992 00:00:00",null,"VO"]
[21,"2661","Иркутская область","26372410","МУП \"Водоканал-Сервис\"","3814007427","381401001",null,null,"VO"]
[22,"2661","Иркутская область","28969215","МУП \"ЖКХ Балахнинский\"","3802016787","380201001","21-01-2015 00:00:00",null,"VO"]
[23,"2661","Иркутская область","28445420","МУП \"ЖКХ Турма\"","3847000593","384701001","21-05-2013 00:00:00","18-05-2022 00:00:00","VO"]
[24,"2661","Иркутская область","31222886","МУП \"Жилищно-коммунальное хозяйство Ручейское\"","3818048590","381801001","06-03-2018 00:00:00",null,"VO"]
[25,"2661","Иркутская область","28980193","МУП \"ЖилкомСервис\"","3802016949","380201001","30-01-2015 00:00:00",null,"VO"]
[26,"2661","Иркутская область","28827705","МУП \"Жилфонд\"","3802013722","380201001","21-05-2014 00:00:00",null,"VO"]
[27,"2661","Иркутская область","26448306","МУП \"КОС БМО\"","3837004905","383701001","19-03-2008 00:00:00",null,"VO"]
[28,"2661","Иркутская область","26513356","МУП \"Карахунское ЖКХ\"","3823032405","382301001","20-02-2009 00:00:00",null,"VO"]
[29,"2661","Иркутская область","31507051","МУП \"Модуль\"","3805736046","380501001","25-02-2021 00:00:00",null,"VO"]
[30,"2661","Иркутская область","31253256","МУП \"Покосное\"","3805732958","380501001","17-07-2018 00:00:00",null,"VO"]
[31,"2661","Иркутская область","30858357","МУП \"Прометей\"","3847000924","384701001","14-05-2014 00:00:00",null,"VO"]
[32,"2661","Иркутская область","31041730","МУП \"Районное коммунальное управление\"","3805731337","380501001","22-06-2017 00:00:00",null,"VO"]
[33,"2661","Иркутская область","31399441","МУП \"Районные коммунальные системы\"","3805734289","380501001","30-07-2019 00:00:00",null,"VO"]
[34,"2661","Иркутская область","31527550","МУП \"Ресурс\"","3805735814","380501001","23-12-2020 00:00:00",null,"VO"]
[35,"2661","Иркутская область","31477661","МУП \"Сервисный центр\"","3819019200","385101001",null,null,"VO"]
[36,"2661","Иркутская область","26493505","МУП \"ТВС п.Перевоз\"","3802011958","380201001","02-10-2008 00:00:00",null,"VO"]
[37,"2661","Иркутская область","26356490","МУП \"Тепловодоканал\"","3802009268","380201001","13-12-2002 00:00:00",null,"VO"]
[38,"2661","Иркутская область","30360689","МУП \"Тепловодоцентраль\"","3802017156","380201001","28-04-2015 00:00:00",null,"VO"]
[39,"2661","Иркутская область","26381583","МУП \"Теплотехник\"","8501006590","850101001",null,null,"VO"]
[40,"2661","Иркутская область","26380050","МУП \"Транзит-Аква\"","3851006904","385101001","27-08-2012 00:00:00",null,"VO"]
[41,"2661","Иркутская область","30477728","МУП \"Удачный\"","3811042134","381101001","15-06-2015 00:00:00",null,"VO"]
[42,"2661","Иркутская область","30390730","МУП \"ЭЛЬБРУС\"","3851993288","385101001","19-03-2014 00:00:00",null,"VO"]
[43,"2661","Иркутская область","31225744","МУП \"ЯЖКХ\"","3805733197","380501001","11-09-2018 00:00:00",null,"VO"]
[44,"2661","Иркутская область","26372373","МУП Ангарского городского округа \"Ангарский Водоканал\"","3801006828","380101001","12-05-1992 00:00:00",null,"VO"]
[45,"2661","Иркутская область","31381940","МУП ЖКХ \"Березняки\"","3805734426","380501001","11-09-2019 00:00:00",null,"VO"]
[46,"2661","Иркутская область","31536045","МУП МО \"Усть-Илимский район\"","3817049545","381701001","26-09-2018 00:00:00",null,"VO"]
[47,"2661","Иркутская область","31280176","МУП Управляющая компания \"Игирма\"","3805733180","380501001","12-09-2018 00:00:00",null,"VO"]
[48,"2661","Иркутская область","28072605","МУСХП \"Центральное\"","3816006186","381601001",null,null,"VO"]
[49,"2661","Иркутская область","30478884","Муниципально унитарное предприятие  \"Управляющая компания Спектр\"","3805728694","380501001",null,null,"VO"]
[50,"2661","Иркутская область","30431831","Муниципальное казенное учреждение \"Административно-хозяйственная служба\"","3802012863","380201001","03-07-2012 00:00:00",null,"VO"]
[51,"2661","Иркутская область","29646328","Муниципальное предприятие \"Остров\"","3818032110","381801001",null,null,"VO"]
[52,"2661","Иркутская область","26505381","ОАО \"Байкальский целлюлозно-бумажный комбинат\"","3837049102","383701001","09-12-1992 00:00:00",null,"VO"]
[53,"2661","Иркутская область","26640106","ОАО \"Облжилкомхоз\"","3808133575","384901001","09-02-2006 00:00:00",null,"VO"]
[54,"2661","Иркутская область","28504250","ОАО \"РЖД\"  (Восточно-Сибирская дирекция по тепловодоснабжению)","7708503727","381045021","23-09-2003 00:00:00",null,"VO"]
[55,"2661","Иркутская область","26372385","ОАО \"Санаторий Братское взморье\"","3805100973","380501001","28-08-1993 00:00:00",null,"VO"]
[56,"2661","Иркутская область","26356630","ОГБУСО \"Заларинский специальный дом - интернат для престарелых и инвалидов\"","3825001498","382501001","01-10-2010 00:00:00",null,"VO"]
[57,"2661","Иркутская область","30365354","ООО  \"Западный филиал\"","3816022124","381601001","01-07-2015 00:00:00",null,"VO"]
[58,"2661","Иркутская область","31290864","ООО \"АКВА плюс\"","3805733616","380501001","13-02-2019 00:00:00",null,"VO"]
[59,"2661","Иркутская область","31390088","ООО \"АКВА-СЕРВИС\"","3816029761","381601001","16-04-2018 00:00:00",null,"VO"]
[60,"2661","Иркутская область","26765909","ООО \"АкваСервис\"","3851001198","385101001","20-08-2010 00:00:00",null,"VO"]
[61,"2661","Иркутская область","30866409","ООО \"АкваСервис\"","3851017744","385101001","29-06-2016 00:00:00",null,"VO"]
[62,"2661","Иркутская область","31445540","ООО \"Акваресурс\"","3816031094","381601001","21-04-2020 00:00:00",null,"VO"]
[63,"2661","Иркутская область","28147772","ООО \"Акватранс\"","3848006615","384801001","21-11-2012 00:00:00",null,"VO"]
[64,"2661","Иркутская область","31383436","ООО \"Акватрейд\"","3818049315","381801001","02-07-2019 00:00:00",null,"VO"]
[65,"2661","Иркутская область","26510575","ООО \"АктивЭнерго\"","3808159809","384901001","23-11-2007 00:00:00",null,"VO"]
[66,"2661","Иркутская область","31417272","ООО \"Байкальская энергетическая компания\"","3808229774","380801001","27-05-2013 00:00:00",null,"VO"]
[67,"2661","Иркутская область","27570092","ООО \"Берёзовый\"","3851004456","385101001","20-10-2011 00:00:00",null,"VO"]
[68,"2661","Иркутская область","30978661","ООО \"БиоТеплоЭнерго\"","3808195606","380801001","28-06-2016 00:00:00",null,"VO"]
[69,"2661","Иркутская область","26380023","ООО \"Биоочистка\"","3815011881","381501001",null,null,"VO"]
[70,"2661","Иркутская область","31157914","ООО \"ВОДОКАНАЛ\"","3818046963","381801001","25-03-2016 00:00:00","24-06-2022 00:00:00","VO"]
[71,"2661","Иркутская область","31345984","ООО \"Вода плюс\"","3817049295","381701001","05-07-2018 00:00:00",null,"VO"]
[72,"2661","Иркутская область","30375237","ООО \"Водоканал\"","3816022438","381601001","03-09-2015 00:00:00",null,"VO"]
[73,"2661","Иркутская область","31077969","ООО \"Грандсервис\"","3805728447","380501001","27-08-2015 00:00:00",null,"VO"]
[74,"2661","Иркутская область","30812025","ООО \"ЖКХ\"","3849057531","384901001",null,null,"VO"]
[75,"2661","Иркутская область","31090913","ООО \"ЖКХ\"","3851019533","385101001","27-04-2017 00:00:00",null,"VO"]
[76,"2661","Иркутская область","31255094","ООО \"ЖКХ-2018\"","3817049538","381701001","24-09-2018 00:00:00",null,"VO"]
[77,"2661","Иркутская область","27439797","ООО \"ЖЭУ\" Химки\"","3834011904","383401001","02-06-2006 00:00:00",null,"VO"]
[78,"2661","Иркутская область","30877129","ООО \"Жилкомсервис\"","3808197297","380801001","02-11-2016 00:00:00",null,"VO"]
[79,"2661","Иркутская область","30802449","ООО \"ИСТОК\"","3805729000","380501001","29-12-2015 00:00:00",null,"VO"]
[80,"2661","Иркутская область","30375249","ООО \"Игнино\"","3814019550","381401001","28-11-2014 00:00:00",null,"VO"]
[81,"2661","Иркутская область","30858060","ООО \"Интехцентр\"","3816997900","381601001",null,null,"VO"]
[82,"2661","Иркутская область","28427676","ООО \"Иркутские Коммунальные Системы\"","3808219007","381201001","23-05-2011 00:00:00",null,"VO"]
[83,"2661","Иркутская область","27113644","ООО \"КАНВОД\"","3808053746","382701001",null,null,"VO"]
[84,"2661","Иркутская область","30934439","ООО \"КОНСТЭНЕРГОТРАНС\"","3817047467","381701001","22-08-2016 00:00:00",null,"VO"]
[85,"2661","Иркутская область","30857962","ООО \"КТ-РЕСУРС\"","3808195620","380801001",null,null,"VO"]
[86,"2661","Иркутская область","31397494","ООО \"Кедр\"","3851003903","385101001","02-08-2011 00:00:00",null,"VO"]
[87,"2661","Иркутская область","27666486","ООО \"Кобляковское\"","3823034064","382301001","02-08-2011 00:00:00",null,"VO"]
[88,"2661","Иркутская область","31544095","ООО \"Коммунальные системы города Тулуна\"","3816028260","381601001","27-03-2017 00:00:00",null,"VO"]
[89,"2661","Иркутская область","26356522","ООО \"Компания Востсибуголь\" \"Разрез \"Тулунуголь\"","3808069986","381643001","24-12-2009 00:00:00",null,"VO"]
[90,"2661","Иркутская область","31206546","ООО \"Комплекс коммунальных систем\"","3810075070","381001001","27-04-2018 00:00:00",null,"VO"]
[91,"2661","Иркутская область","26647667","ООО \"МАЯК\"","3815015660","381501001","25-05-2010 00:00:00",null,"VO"]
[92,"2661","Иркутская область","31597239","ООО \"МИР-СЕРВИС\"","3805734970","380501001","28-01-2020 00:00:00",null,"VO"]
[93,"2661","Иркутская область","30409908","ООО \"Межмуниципальное предприятие коммунального комплекса\"","3802017195","380201719","24-06-2015 00:00:00",null,"VO"]
[94,"2661","Иркутская область","27871088","ООО \"Наш дом\"","3834015521","383401001","26-01-2011 00:00:00",null,"VO"]
[95,"2661","Иркутская область","28504015","ООО \"Нижнеудинское коммунальное управление\"","3816016378","381601001","14-11-2013 00:00:00",null,"VO"]
[96,"2661","Иркутская область","28005324","ООО \"НордТрейд\"","3818028379","381801001","16-11-2010 00:00:00",null,"VO"]
[97,"2661","Иркутская область","31330016","ООО \"ОВУК\"","3847000762","384701001","04-12-2013 00:00:00",null,"VO"]
[98,"2661","Иркутская область","28453158","ООО \"ПК БРАСС\"","7813376549","385101001","23-04-2007 00:00:00",null,"VO"]
[99,"2661","Иркутская область","31545268","ООО \"ПКХ\"","3805736575","380501001","03-09-2021 00:00:00",null,"VO"]
[100,"2661","Иркутская область","31464006","ООО \"Парабель-2020\"","3817050396","381701001","30-01-2020 00:00:00",null,"VO"]
[101,"2661","Иркутская область","26372433","ООО \"Прогресс-сервис\"","3818026692","381801001","16-10-2009 00:00:00",null,"VO"]
[102,"2661","Иркутская область","31064806","ООО \"РГК\"","3805731979","380501001","23-11-2017 00:00:00",null,"VO"]
[103,"2661","Иркутская область","31423809","ООО \"РОСТ\"","3817050036","381701001","03-06-2019 00:00:00",null,"VO"]
[104,"2661","Иркутская область","31023716","ООО \"Ресурс\"","3817048196","381701001","21-04-2017 00:00:00",null,"VO"]
[105,"2661","Иркутская область","30845338","ООО \"СТЭК\"","3808195596","380801001","28-06-2016 00:00:00",null,"VO"]
[106,"2661","Иркутская область","30359920","ООО \"Сервис\"","3808189673","380801001","21-04-2015 00:00:00",null,"VO"]
[107,"2661","Иркутская область","26372405","ООО \"Сетевая компания \"Иркут\"","3810035487","381001001","28-05-2004 00:00:00",null,"VO"]
[108,"2661","Иркутская область","27573731","ООО \"СибТеплоСервис\"","3814016950","381401001","14-01-2011 00:00:00",null,"VO"]
[109,"2661","Иркутская область","31335326","ООО \"Сибирская строительная компания\"","3811113473","381101001","30-08-2007 00:00:00",null,"VO"]
[110,"2661","Иркутская область","31023171","ООО \"Система ВодоОтведения\"","3851020899","385101001","20-11-2017 00:00:00",null,"VO"]
[111,"2661","Иркутская область","30354079","ООО \"Слюдянское\"","3810058290","381001001","26-05-2015 00:00:00",null,"VO"]
[112,"2661","Иркутская область","31349860","ООО \"Стандарткомстрой\"","3808130454","384901001","13-12-2005 00:00:00",null,"VO"]
[113,"2661","Иркутская область","31189292","ООО \"Сток-Сервис\"","3814035939","381401001","05-02-2018 00:00:00",null,"VO"]
[114,"2661","Иркутская область","26552069","ООО \"Стоки\"","3818017610","381801001","08-10-2004 00:00:00",null,"VO"]
[115,"2661","Иркутская область","28903352","ООО \"ТЕПЛОСЕРВИС\"","3834016606","383401001","25-06-2014 00:00:00",null,"VO"]
[116,"2661","Иркутская область","28966192","ООО \"ТЕХНОКОМ\"","3811181360","381101001","22-07-2014 00:00:00",null,"VO"]
[117,"2661","Иркутская область","30867640","ООО \"ТЭТК\"","3851017487","385101001","04-05-2016 00:00:00",null,"VO"]
[118,"2661","Иркутская область","30933991","ООО \"ТеплоМиг\"","3817047837","381701001","12-12-2016 00:00:00","02-06-2022 00:00:00","VO"]
[119,"2661","Иркутская область","31100379","ООО \"ТеплоРесурс\"","3818046970","381801001","25-03-2016 00:00:00",null,"VO"]
[120,"2661","Иркутская область","30985847","ООО \"Тепловодоканал\"","3818048128","381801001",null,null,"VO"]
[121,"2661","Иркутская область","30382397","ООО \"Тепловодосбыт\"","3851999346","385101001","24-05-2013 00:00:00",null,"VO"]
[122,"2661","Иркутская область","31237450","ООО \"Тепловодснаб\"","3818048287","381801001","21-09-2017 00:00:00",null,"VO"]
[123,"2661","Иркутская область","30857845","ООО \"Теплоисток\"","3805729899","380501001",null,null,"VO"]
[124,"2661","Иркутская область","28871736","ООО \"ТрансТехРесурс\"","3816014476","381601001","05-10-2012 00:00:00",null,"VO"]
[125,"2661","Иркутская область","31030680","ООО \"Тубинский\"","3817048573","381701001","09-10-2017 00:00:00",null,"VO"]
[126,"2661","Иркутская область","27522005","ООО \"Тыретские инженерные сети\"","3814016968","381401001","15-06-2011 00:00:00",null,"VO"]
[127,"2661","Иркутская область","26755257","ООО \"УК \" Энергия\"","3831004169","383101001","29-12-2005 00:00:00",null,"VO"]
[128,"2661","Иркутская область","30948581","ООО \"УК \"Макском\"","3812090927","381201001","22-08-2006 00:00:00",null,"VO"]
[129,"2661","Иркутская область","26372436","ООО \"УК Водоканал-Сервис\"","3818018814","381801001","23-09-2005 00:00:00",null,"VO"]
[130,"2661","Иркутская область","27438168","ООО \"УК ЖКХ Новоилимск\"","3834015458","383401001",null,null,"VO"]
[131,"2661","Иркутская область","31225695","ООО \"УКС\"","3810062522","381001001","18-02-2016 00:00:00",null,"VO"]
[132,"2661","Иркутская область","30904230","ООО \"Управление жилищно-коммунальными системами\"","3810064110","381001001","13-05-2016 00:00:00",null,"VO"]
[133,"2661","Иркутская область","30353196","ООО \"Управление жилищно-коммунальными системами\"","3810341244","381001001","03-12-2014 00:00:00",null,"VO"]
[134,"2661","Иркутская область","31183602","ООО \"Управляющая компания Северо-Западная\"","3811432462","381001001","26-02-2016 00:00:00",null,"VO"]
[135,"2661","Иркутская область","26356477","ООО \"Усть-Кутские тепловые сети и котельные\"","3818025152","381801001","30-12-2008 00:00:00",null,"VO"]
[136,"2661","Иркутская область","26555200","ООО \"Ушаковская\"","3827026265","382704001","24-10-2007 00:00:00",null,"VO"]
[137,"2661","Иркутская область","31235244","ООО \"Факел\"","3851020017","385101001","18-07-2017 00:00:00",null,"VO"]
[138,"2661","Иркутская область","31552113","ООО \"Факел+\"","3851024460","385101001","11-11-2019 00:00:00",null,"VO"]
[139,"2661","Иркутская область","30907259","ООО \"ХОРС\"","3804999116","380401001","20-04-2017 00:00:00",null,"VO"]
[140,"2661","Иркутская область","31508135","ООО \"Центр Обеспечения Ресурсами\"","3817051047","381701001","26-03-2021 00:00:00",null,"VO"]
[141,"2661","Иркутская область","26648801","ООО \"Центральная котельная\"","3808092150","381601001","21-10-2010 00:00:00",null,"VO"]
[142,"2661","Иркутская область","30357368","ООО \"Черемховский водоканал\"","3851994299","385101001","08-09-2014 00:00:00",null,"VO"]
[143,"2661","Иркутская область","31514653","ООО \"Эко Сити Иркутск\"","3812155941","381201001","26-06-2014 00:00:00",null,"VO"]
[144,"2661","Иркутская область","26372414","ООО \"Энергопром\"","3815012645","381501001","26-09-2007 00:00:00",null,"VO"]
[145,"2661","Иркутская область","28461970","ООО \"Энергосфера-Иркутск\"","3818031413","381801001","10-06-2013 00:00:00",null,"VO"]
[146,"2661","Иркутская область","28829498","ООО \"Южнобайкальское\"","3848006527","384801001",null,null,"VO"]
[147,"2661","Иркутская область","30380999","ООО «УСОЛЬСКОЕ КОММУНАЛЬНОЕ УПРАВЛЕНИЕ»","3851992774","385101001","23-12-2013 00:00:00",null,"VO"]
[148,"2661","Иркутская область","28261220","ООО ЖКХ \"Южное\"","3816014571","381601001","30-10-2012 00:00:00",null,"VO"]
[149,"2661","Иркутская область","30857841","ООО СК \"Ресурс Транзит\"","3811434389","381101001","29-08-2016 00:00:00",null,"VO"]
[150,"2661","Иркутская область","28503958","ООО УК \"Водоканал\"","3851997853","385101001","25-10-2013 00:00:00",null,"VO"]
[151,"2661","Иркутская область","26380012","ООО УК \"СОЛ\"","3808172790","380801001",null,null,"VO"]
[152,"2661","Иркутская область","26372435","ООО УК\"Бирюса\"","3818018652","381801001",null,null,"VO"]
[153,"2661","Иркутская область","30438691","Областное государственное автономное учреждение социального обслуживания \"Марковский геронтологический центр\"","3827000771","382701001",null,null,"VO"]
[154,"2661","Иркутская область","31387011","Общество с ограниченной ответственностью \"Вик\"","3851024043","385101001","08-08-2019 00:00:00",null,"VO"]
[155,"2661","Иркутская область","30408096","Общество с ограниченной ответственностью \"Сетевая компания - Вода\"","3810325210","381001001","04-05-2012 00:00:00",null,"VO"]
[156,"2661","Иркутская область","26781007","ПАО \"Иркутскэнерго\"","3800000220","997450001",null,null,"VO"]
[157,"2661","Иркутская область","26505310","ПАО \"РУСАЛ Братский алюминиевый завод\"","3803100054","997550001","26-11-1992 00:00:00",null,"VO"]
[158,"2661","Иркутская область","27506927","Усть-Ордынское МУП \"Каскад\"","8506007453","850601001","14-02-2011 00:00:00",null,"VO"]
[159,"2661","Иркутская область","30946960","ФГБУ \"ЦЖКУ\" Минобороны России","7729314745","381145002","21-12-2002 00:00:00",null,"VO"]
[160,"2661","Иркутская область","26375629","ФГУП РТРС \"Иркутский ОРТПЦ\"","7717127211","380802002","23-11-2001 00:00:00",null,"VO"]
[161,"2661","Иркутская область","27113703","Филиал \"Иркутское РНУ\" ООО \"Транснефть - Восток\"","3801079671","380102001",null,null,"VO"]
[162,"2661","Иркутская область","30914574","Филиал ФГБУ \"ЦЖКУ\" МИНОБОРОНЫ РОССИИ (по ЦВО)","7729314745","667043001",null,null,"VO"]

{"sheet":"modClassifierValidate","index":36,"n_rows":0,"n_cols":0,"rows_kept":0,"cut":false,"hidden":true,"merged":[]}

{"sheet":"modHyp","index":37,"n_rows":0,"n_cols":0,"rows_kept":0,"cut":false,"hidden":true,"merged":[]}

{"sheet":"modfrmDateChoose","index":38,"n_rows":0,"n_cols":0,"rows_kept":0,"cut":false,"hidden":true,"merged":[]}

{"sheet":"modComm","index":39,"n_rows":0,"n_cols":0,"rows_kept":0,"cut":false,"hidden":true,"merged":[]}

{"sheet":"modThisWorkbook","index":40,"n_rows":0,"n_cols":0,"rows_kept":0,"cut":false,"hidden":true,"merged":[]}

{"sheet":"REESTR_MO","index":41,"n_rows":465,"n_cols":4,"rows_kept":465,"cut":false,"hidden":true,"merged":[]}
["№","МР","МО","МО_ОКТМО"]
[1,"Аларский муниципальный район","Аларский муниципальный район","25605000"]
[2,"Аларский муниципальный район","Аларь","25605402"]
[3,"Аларский муниципальный район","Александровск","25605404"]
[4,"Аларский муниципальный район","Аляты","25605407"]
[5,"Аларский муниципальный район","Ангарское","25605410"]
[6,"Аларский муниципальный район","Бахтай","25605413"]
[7,"Аларский муниципальный район","Егоровск","25605416"]
[8,"Аларский муниципальный район","Забитуй","25605414"]
[9,"Аларский муниципальный район","Зоны","25605419"]
[10,"Аларский муниципальный район","Иваническ","25605422"]
[11,"Аларский муниципальный район","Куйта","25605425"]
[12,"Аларский муниципальный район","Кутулик","25605426"]
[13,"Аларский муниципальный район","Маниловск","25605427"]
[14,"Аларский муниципальный район","Могоенок","25605428"]
[15,"Аларский муниципальный район","Нельхай","25605431"]
[16,"Аларский муниципальный район","Ныгдинское","25605432"]
[17,"Аларский муниципальный район","Табарсук","25605434"]
[18,"Аларский муниципальный район","Тыргетуй","25605437"]
[19,"Ангарский","Ангарский","25703000"]
[20,"Балаганский муниципальный район","Балаганский муниципальный район","25601000"]
[21,"Балаганский муниципальный район","Балаганское","25601403"]
[22,"Балаганский муниципальный район","Биритское","25601405"]
[23,"Балаганский муниципальный район","Заславское","25601410"]
[24,"Балаганский муниципальный район","Коноваловское","25601415"]
[25,"Балаганский муниципальный район","Кумарейское","25601418"]
[26,"Балаганский муниципальный район","Тарнопольское","25601425"]
[27,"Балаганский муниципальный район","Шарагайское","25601435"]
[28,"Баяндаевский муниципальный район","Баяндаевский муниципальный район","25607000"]
[29,"Баяндаевский муниципальный район","Баяндай","25607405"]
[30,"Баяндаевский муниципальный район","Васильевск","25607408"]
[31,"Баяндаевский муниципальный район","Гаханы","25607410"]
[32,"Баяндаевский муниципальный район","Курумчинский","25607414"]
[33,"Баяндаевский муниципальный район","Кырма","25607420"]
[34,"Баяндаевский муниципальный район","Люры","25607424"]
[35,"Баяндаевский муниципальный район","Нагалык","25607428"]
[36,"Баяндаевский муниципальный район","Ользоны","25607432"]
[37,"Баяндаевский муниципальный район","Покровка","25607434"]
[38,"Баяндаевский муниципальный район","Половинка","25607435"]
[39,"Баяндаевский муниципальный район","Тургеневка","25607441"]
[40,"Баяндаевский муниципальный район","Хогот","25607448"]
[41,"Бодайбинский муниципальный район","Артемовское","25602155"]
[42,"Бодайбинский муниципальный район","Балахнинское","25602156"]
[43,"Бодайбинский муниципальный район","Бодайбинский муниципальный район","25602000"]
[44,"Бодайбинский муниципальный район","Бодайбинское","25602101"]
[45,"Бодайбинский муниципальный район","Жуинское","25602402"]
[46,"Бодайбинский муниципальный район","Кропоткинское","25602158"]
[47,"Бодайбинский муниципальный район","Мамаканское","25602162"]
[48,"Боханский муниципальный район","Александровское","25609402"]
[49,"Боханский муниципальный район","Бохан","25609405"]
[50,"Боханский муниципальный район","Боханский муниципальный район","25609000"]
[51,"Боханский муниципальный район","Буреть","25609407"]
[52,"Боханский муниципальный район","Казачье","25609416"]
[53,"Боханский муниципальный район","Каменка","25609419"]
[54,"Боханский муниципальный район","Новая Ида","25609424"]
[55,"Боханский муниципальный район","Олонки","25609429"]
[56,"Боханский муниципальный район","Середкино","25609435"]
[57,"Боханский муниципальный район","Тараса","25609438"]
[58,"Боханский муниципальный район","Тихоновка","25609440"]
[59,"Боханский муниципальный район","Укыр","25609442"]
[60,"Боханский муниципальный район","Хохорск","25609449"]
[61,"Боханский муниципальный район","Шаралдай","25609450"]
[62,"Братский муниципальный район","Большеокинское","25604401"]
[63,"Братский муниципальный район","Братский муниципальный район","25604000"]
[64,"Братский муниципальный район","Вихоревское","25604103"]
[65,"Братский муниципальный район","Добчурское","25604402"]
[66,"Братский муниципальный район","Зябинское","25604456"]
[67,"Братский муниципальный район","Илирское","25604404"]
[68,"Братский муниципальный район","Калтукское","25604407"]
[69,"Братский муниципальный район","Карахунское","25604410"]
[70,"Братский муниципальный район","Кежемское","25604413"]
[71,"Братский муниципальный район","Ключи-Булакское","25604416"]
[72,"Братский муниципальный район","Кобинское","25604457"]
[73,"Братский муниципальный район","Кобляковское","25604422"]
[74,"Братский муниципальный район","Куватское","25604458"]
[75,"Братский муниципальный район","Кузнецовское","25604425"]
[76,"Братский муниципальный район","Межселенные территории Братского муниципального района, на которых расположены земли следующих населенных пунктов: п Тынкобь, п Хвойный","25604701"]
[77,"Братский муниципальный район","Наратайское","25604428"]
[78,"Братский муниципальный район","Озернинское","25604431"]
[79,"Братский муниципальный район","Покоснинское","25604437"]
[80,"Братский муниципальный район","Прибойнинское","25604434"]
[81,"Братский муниципальный район","Прибрежнинское","25604440"]
[82,"Братский муниципальный район","Тангуйское","25604443"]
[83,"Братский муниципальный район","Тарминское","25604445"]
[84,"Братский муниципальный район","Турманское","25604447"]
[85,"Братский муниципальный район","Тэмьское","25604450"]
[86,"Братский муниципальный район","Харанжинское","25604452"]
[87,"Братский муниципальный район","Шумиловское","25604455"]
[88,"Жигаловский муниципальный район","Дальне-Закорское","25606404"]
[89,"Жигаловский муниципальный район","Жигаловский муниципальный район","25606000"]
[90,"Жигаловский муниципальный район","Жигаловское","25606151"]
[91,"Жигаловский муниципальный район","Знаменское","25606407"]
[92,"Жигаловский муниципальный район","Лукиновское","25606419"]
[93,"Жигаловский муниципальный район","Межселенные территории Жигаловского муниципального района, на которых расположены земли следующих населенных пунктов: с Коношаново, д Головское","25606701"]
[94,"Жигаловский муниципальный район","Петровское","25606422"]
[95,"Жигаловский муниципальный район","Рудовское","25606425"]
[96,"Жигаловский муниципальный район","Тимошинское","25606431"]
[97,"Жигаловский муниципальный район","Тутурское","25606434"]
[98,"Жигаловский муниципальный район","Усть-Илгинское","25606437"]
[99,"Жигаловский муниципальный район","Чиканское","25606440"]
[100,"Заларинский муниципальный район","Бабагайское","25608402"]
[101,"Заларинский муниципальный район","Бажирское","25608404"]
[102,"Заларинский муниципальный район","Веренское","25608407"]
[103,"Заларинский муниципальный район","Владимирское","25608410"]
[104,"Заларинский муниципальный район","Заларинский муниципальный район","25608000"]
[105,"Заларинский муниципальный район","Заларинское","25608151"]
[106,"Заларинский муниципальный район","Моисеевское","25608416"]
[107,"Заларинский муниципальный район","Мойганское","25608419"]
[108,"Заларинский муниципальный район","Новочеремховское","25608422"]
[109,"Заларинский муниципальный район","Семеновское","25608425"]
[110,"Заларинский муниципальный район","Троицкое","25608428"]
[111,"Заларинский муниципальный район","Тыретское","25608155"]
[112,"Заларинский муниципальный район","Ханжиновское","25608434"]
[113,"Заларинский муниципальный район","Холмогойское","25608437"]
[114,"Заларинский муниципальный район","Хор-Тагнинское","25608440"]
[115,"Заларинский муниципальный район","Черемшанское","25608443"]
[116,"Зиминский муниципальный район","Батаминское","25610402"]
[117,"Зиминский муниципальный район","Буринское","25610403"]
[118,"Зиминский муниципальный район","Зиминский муниципальный район","25610000"]
[119,"Зиминский муниципальный район","Зулумайское","25610404"]
[120,"Зиминский муниципальный район","Кимильтейское","25610407"]
[121,"Зиминский муниципальный район","Масляногорское","25610413"]
[122,"Зиминский муниципальный район","Покровское","25610419"]
[123,"Зиминский муниципальный район","Услонское","25610422"]
[124,"Зиминский муниципальный район","Ухтуйское","25610425"]
[125,"Зиминский муниципальный район","Филипповское","25610428"]
[126,"Зиминский муниципальный район","Хазанское","25610431"]
[127,"Зиминский муниципальный район","Харайгунское","25610435"]
[128,"Зиминское","Зиминское","25720000"]
[129,"Иркутский муниципальный район","Большереченское","25612155"]
[130,"Иркутский муниципальный район","Голоустненское","25612404"]
[131,"Иркутский муниципальный район","Гороховское","25612407"]
[132,"Иркутский муниципальный район","Дзержинское","25612438"]
[133,"Иркутский муниципальный район","Иркутский муниципальный район","25612000"]
[134,"Иркутский муниципальный район","Карлукское","25612408"]
[135,"Иркутский муниципальный район","Листвянское","25612160"]
[136,"Иркутский муниципальный район","Максимовское","25612410"]
[137,"Иркутский муниципальный район","Мамонское","25612439"]
[138,"Иркутский муниципальный район","Марковское","25612163"]
[139,"Иркутский муниципальный район","Молодежное","25612440"]
[140,"Иркутский муниципальный район","Никольское","25612413"]
[141,"Иркутский муниципальный район","Оекское","25612416"]
[142,"Иркутский муниципальный район","Ревякинское","25612419"]
[143,"Иркутский муниципальный район","Смоленское","25612422"]
[144,"Иркутский муниципальный район","Сосновоборское","25612441"]
[145,"Иркутский муниципальный район","Уриковское","25612425"]
[146,"Иркутский муниципальный район","Усть-Балейское","25612428"]
[147,"Иркутский муниципальный район","Усть-Кудинское","25612442"]
[148,"Иркутский муниципальный район","Ушаковское","25612431"]
[149,"Иркутский муниципальный район","Хомутовское","25612434"]
[150,"Иркутский муниципальный район","Ширяевское","25612437"]
[151,"Казачинско-Ленский муниципальный район","Казачинско-Ленский муниципальный район","25614000"]
[152,"Казачинско-Ленский муниципальный район","Казачинское","25614404"]
[153,"Казачинско-Ленский муниципальный район","Карамское","25614407"]
[154,"Казачинско-Ленский муниципальный район","Ключевское","25614417"]
[155,"Казачинско-Ленский муниципальный район","Кунерминское","25614153"]
[156,"Казачинско-Ленский муниципальный район","Магистральнинское","25614154"]
[157,"Казачинско-Ленский муниципальный район","Мартыновское","25614413"]
[158,"Казачинско-Ленский муниципальный район","Межселенные территории Казачинско-Ленского муниципального района, на которых расположены земли следующих населенных пунктов: д Вершина Ханды","25614701"]
[159,"Казачинско-Ленский муниципальный район","Небельское","25614418"]
[160,"Казачинско-Ленский муниципальный район","Новоселовское","25614416"]
[161,"Казачинско-Ленский муниципальный район","Ульканское","25614158"]
[162,"Катангский муниципальный район","Ербогаченское","25616404"]
[163,"Катангский муниципальный район","Катангский муниципальный район","25616000"]
[164,"Катангский муниципальный район","Непское","25616419"]
[165,"Катангский муниципальный район","Подволошинское","25616425"]
[166,"Катангский муниципальный район","Преображенское","25616428"]
[167,"Качугский муниципальный район","Ангинское","25618402"]
[168,"Качугский муниципальный район","Белоусовское","25618404"]
[169,"Качугский муниципальный район","Бирюльское","25618407"]
[170,"Качугский муниципальный район","Большетарельское","25618410"]
[171,"Качугский муниципальный район","Бутаковское","25618413"]
[172,"Качугский муниципальный район","Верхоленское","25618419"]
[173,"Качугский муниципальный район","Вершино-Тутурское","25618416"]
[174,"Качугский муниципальный район","Залогское","25618422"]
[175,"Качугский муниципальный район","Зареченское","25618425"]
[176,"Качугский муниципальный район","Карлукское","25618428"]
[177,"Качугский муниципальный район","Качугский муниципальный район","25618000"]
[178,"Качугский муниципальный район","Качугское городское поселение","25618151"]
[179,"Качугский муниципальный район","Качугское сельское поселение","25618431"]
[180,"Качугский муниципальный район","Манзурское","25618437"]
[181,"Качугский муниципальный район","Харбатовское","25618443"]
[182,"Киренский муниципальный район","Алексеевское","25620155"]
[183,"Киренский муниципальный район","Алымовское","25620402"]
[184,"Киренский муниципальный район","Киренский муниципальный район","25620000"]
[185,"Киренский муниципальный район","Киренское","25620101"]
[186,"Киренский муниципальный район","Коршуновское","25620419"]
[187,"Киренский муниципальный район","Криволукское","25620425"]
[188,"Киренский муниципальный район","Макаровское","25620431"]
[189,"Киренский муниципальный район","Межселенные территории Киренского муниципального района, на территории которых расположены земли следующих населенных пунктов: с Улькан, с Красноярово, п Визирный","25620701"]
[190,"Киренский муниципальный район","Небельское","25620435"]
[191,"Киренский муниципальный район","Петропавловское","25620437"]
[192,"Киренский муниципальный район","Юбилейнинское","25620453"]
[193,"Куйтунский муниципальный район","Алкинское","25622404"]
[194,"Куйтунский муниципальный район","Андрюшинское","25622410"]
[195,"Куйтунский муниципальный район","Барлукское","25622413"]
[196,"Куйтунский муниципальный район","Большекашелакское","25622416"]
[197,"Куйтунский муниципальный район","Иркутское","25622425"]
[198,"Куйтунский муниципальный район","Каразейское","25622428"]
[199,"Куйтунский муниципальный район","Карымское","25622434"]
[200,"Куйтунский муниципальный район","Куйтунский муниципальный район","25622000"]
[201,"Куйтунский муниципальный район","Куйтунское","25622151"]
[202,"Куйтунский муниципальный район","Кундуйское","25622436"]
[203,"Куйтунский муниципальный район","Ленинское","25622438"]
[204,"Куйтунский муниципальный район","Лермонтовское","25622440"]
[205,"Куйтунский муниципальный район","Мингатуйское","25622443"]
[206,"Куйтунский муниципальный район","Новотельбинское","25622447"]
[207,"Куйтунский муниципальный район","Панагинское","25622462"]
[208,"Куйтунский муниципальный район","Тулюшское","25622449"]
[209,"Куйтунский муниципальный район","Усть-Кадинское","25622452"]
[210,"Куйтунский муниципальный район","Уховское","25622454"]
[211,"Куйтунский муниципальный район","Уянское","25622455"]
[212,"Куйтунский муниципальный район","Харикское","25622458"]
[213,"Куйтунский муниципальный район","Чеботарихинское","25622461"]
[214,"Мамско-Чуйский муниципальный район","Витимское","25624155"]
[215,"Мамско-Чуйский муниципальный район","Луговское","25624170"]
[216,"Мамско-Чуйский муниципальный район","Мамско-Чуйский муниципальный район","25624000"]
[217,"Мамско-Чуйский муниципальный район","Мамское","25624151"]
[218,"Мамско-Чуйский муниципальный район","Межселенная территория Мамско-Чуйского муниципального района, на территории которой расположены земли населенного пункта с Чуя","25624701"]
[219,"Нижнеилимский муниципальный район","Березняковское","25626402"]
[220,"Нижнеилимский муниципальный район","Брусничное","25626404"]
[221,"Нижнеилимский муниципальный район","Видимское","25626155"]
[222,"Нижнеилимский муниципальный район","Дальнинское","25626406"]
[223,"Нижнеилимский муниципальный район","Железногорск-Илимское городское поселение","25626101"]
[224,"Нижнеилимский муниципальный район","Заморское","25626408"]
[225,"Нижнеилимский муниципальный район","Коршуновское","25626411"]
[226,"Нижнеилимский муниципальный район","Межселенные территории Нижнеилимского муниципального района, на которых расположены земли следующих населенных пунктов: п Заярск, п Миндей 1 и др.","25626701"]
[227,"Нижнеилимский муниципальный район","Нижнеилимский муниципальный район","25626000"]
[228,"Нижнеилимский муниципальный район","Новоигирминское","25626160"]
[229,"Нижнеилимский муниципальный район","Новоилимское","25626412"]
[230,"Нижнеилимский муниципальный район","Радищевское","25626162"]
[231,"Нижнеилимский муниципальный район","Речушинское","25626413"]
[232,"Нижнеилимский муниципальный район","Рудногорское","25626163"]
[233,"Нижнеилимский муниципальный район","Семигорское","25626418"]
[234,"Нижнеилимский муниципальный район","Соцгородокское","25626420"]
[235,"Нижнеилимский муниципальный район","Хребтовское","25626165"]
[236,"Нижнеилимский муниципальный район","Шестаковское","25626170"]
[237,"Нижнеилимский муниципальный район","Янгелевское","25626175"]
[238,"Нижнеудинский муниципальный район","Алзамайcкое","25628105"]
[239,"Нижнеудинский муниципальный район","Атагайское","25628155"]
[240,"Нижнеудинский муниципальный район","Верхнегутарское","25628407"]
[241,"Нижнеудинский муниципальный район","Замзорское","25628410"]
[242,"Нижнеудинский муниципальный район","Заречное","25628411"]
[243,"Нижнеудинский муниципальный район","Иргейское","25628413"]
[244,"Нижнеудинский муниципальный район","Каменское","25628416"]
[245,"Нижнеудинский муниципальный район","Катарбейское","25628419"]
[246,"Нижнеудинский муниципальный район","Катарминское","25628422"]
[247,"Нижнеудинский муниципальный район","Костинское","25628423"]
[248,"Нижнеудинский муниципальный район","Нерхинское","25628424"]
[249,"Нижнеудинский муниципальный район","Нижнеудинский муниципальный район","25628000"]
[250,"Нижнеудинский муниципальный район","Нижнеудинское","25628101"]
[251,"Нижнеудинский муниципальный район","Порогское","25628425"]
[252,"Нижнеудинский муниципальный район","Солонецкое","25628428"]
[253,"Нижнеудинский муниципальный район","Староалзамайское","25628402"]
[254,"Нижнеудинский муниципальный район","Тофаларское","25628431"]
[255,"Нижнеудинский муниципальный район","Уковское","25628160"]
[256,"Нижнеудинский муниципальный район","Усть-Рубахинское","25628434"]
[257,"Нижнеудинский муниципальный район","Худоеланское","25628437"]
[258,"Нижнеудинский муниципальный район","Чеховское","25628440"]
[259,"Нижнеудинский муниципальный район","Шебертинское","25628443"]
[260,"Нижнеудинский муниципальный район","Широковское","25628446"]
[261,"Нижнеудинский муниципальный район","Шумское","25628165"]
[262,"Нукутский муниципальный район","Алтарик","25629402"]
[263,"Нукутский муниципальный район","Закулей","25629404"]
[264,"Нукутский муниципальный район","Новоленино","25629407"]
[265,"Нукутский муниципальный район","Новонукутское","25629410"]
[266,"Нукутский муниципальный район","Нукутский муниципальный район","25629000"]
[267,"Нукутский муниципальный район","Нукуты","25629413"]
[268,"Нукутский муниципальный район","Первомайское","25629416"]
[269,"Нукутский муниципальный район","Хадахан","25629419"]
[270,"Нукутский муниципальный район","Хареты","25629420"]
[271,"Нукутский муниципальный район","Целинный","25629422"]
[272,"Нукутский муниципальный район","Шаратское","25629427"]
[273,"Ольхонский муниципальный район","Бугульдейское","25630402"]
[274,"Ольхонский муниципальный район","Еланцынское","25630404"]
[275,"Ольхонский муниципальный район","Куретское","25630410"]
[276,"Ольхонский муниципальный район","Ольхонский муниципальный район","25630000"]
[277,"Ольхонский муниципальный район","Онгуренское","25630407"]
[278,"Ольхонский муниципальный район","Хужирское","25630420"]
[279,"Ольхонский муниципальный район","Шара-Тоготское","25630413"]
[280,"Осинский муниципальный район","Бильчир","25631404"]
[281,"Осинский муниципальный район","Бурят-Янгуты","25631407"]
[282,"Осинский муниципальный район","Ирхидей","25631417"]
[283,"Осинский муниципальный район","Каха-Онгойское","25631422"]
[284,"Осинский муниципальный район","Майск","25631424"]
[285,"Осинский муниципальный район","Ново-Ленино","25631425"]
[286,"Осинский муниципальный район","Обуса","25631426"]
[287,"Осинский муниципальный район","Оса","25631427"]
[288,"Осинский муниципальный район","Осинский муниципальный район","25631000"]
[289,"Осинский муниципальный район","Поселок Приморский","25631429"]
[290,"Осинский муниципальный район","Русские Янгуты","25631433"]
[291,"Осинский муниципальный район","Улейское","25631440"]
[292,"Осинский муниципальный район","Усть-Алтан","25631445"]
[293,"Слюдянский муниципальный район","Байкальское","25634108"]
[294,"Слюдянский муниципальный район","Быстринское","25634402"]
[295,"Слюдянский муниципальный район","Култукское","25634162"]
[296,"Слюдянский муниципальный район","Маритуйское","25634404"]
[297,"Слюдянский муниципальный район","Новоснежнинское","25634408"]
[298,"Слюдянский муниципальный район","Портбайкальское","25634420"]
[299,"Слюдянский муниципальный район","Слюдянский муниципальный район","25634000"]
[300,"Слюдянский муниципальный район","Слюдянское","25634101"]
[301,"Слюдянский муниципальный район","Утуликское","25634407"]
[302,"Тайшетский муниципальный район","Березовское","25636404"]
[303,"Тайшетский муниципальный район","Бирюсинское","25636406"]
[304,"Тайшетский муниципальный район","Бирюсинское городское поселение","25636105"]
[305,"Тайшетский муниципальный район","Борисовское","25636408"]
[306,"Тайшетский муниципальный район","Бузыкановское","25636410"]
[307,"Тайшетский муниципальный район","Венгерское","25636440"]
[308,"Тайшетский муниципальный район","Джогинское","25636413"]
[309,"Тайшетский муниципальный район","Зареченское","25636417"]
[310,"Тайшетский муниципальный район","Квитокское","25636155"]
[311,"Тайшетский муниципальный район","Межселенные территории Тайшетского муниципального района, расположенные вне границ муниципальных образований Тайшетского муниципального района","25636701"]
[312,"Тайшетский муниципальный район","Мирнинское","25636427"]
[313,"Тайшетский муниципальный район","Нижнезаимское","25636431"]
[314,"Тайшетский муниципальный район","Николаевское","25636428"]
[315,"Тайшетский муниципальный район","Новобирюсинское","25636162"]
[316,"Тайшетский муниципальный район","Полинчетское","25636422"]
[317,"Тайшетский муниципальный район","Половино-Черемховское","25636434"]
[318,"Тайшетский муниципальный район","Разгонское","25636465"]
[319,"Тайшетский муниципальный район","Рождественское","25636437"]
[320,"Тайшетский муниципальный район","Соляновское","25636443"]
[321,"Тайшетский муниципальный район","Старо-Акульшетское","25636402"]
[322,"Тайшетский муниципальный район","Тайшетский муниципальный район","25636000"]
[323,"Тайшетский муниципальный район","Тайшетское городское поселение","25636101"]
[324,"Тайшетский муниципальный район","Тальское","25636446"]
[325,"Тайшетский муниципальный район","Тамтачетское","25636466"]
[326,"Тайшетский муниципальный район","Тимирязевское","25636452"]
[327,"Тайшетский муниципальный район","Черчетское","25636455"]
[328,"Тайшетский муниципальный район","Шелаевское","25636458"]
[329,"Тайшетский муниципальный район","Шелеховское","25636461"]
[330,"Тайшетский муниципальный район","Шиткинское","25636174"]
[331,"Тайшетский муниципальный район","Юртинское","25636156"]
[332,"Тулунский муниципальный район","Азейское","25638401"]
[333,"Тулунский муниципальный район","Алгатуйское","25638453"]
[334,"Тулунский муниципальный район","Аршанское","25638454"]
[335,"Тулунский муниципальный район","Афанасьевское","25638440"]
[336,"Тулунский муниципальный район","Будаговское","25638404"]
[337,"Тулунский муниципальный район","Бурхунское","25638407"]
[338,"Тулунский муниципальный район","Владимирское","25638408"]
[339,"Тулунский муниципальный район","Гадалейское","25638410"]
[340,"Тулунский муниципальный район","Гуранское","25638416"]
[341,"Тулунский муниципальный район","Евдокимовское","25638419"]
[342,"Тулунский муниципальный район","Едогонское","25638422"]
[343,"Тулунский муниципальный район","Икейское","25638425"]
[344,"Тулунский муниципальный район","Ишидейское","25638413"]
[345,"Тулунский муниципальный район","Кирейское","25638428"]
[346,"Тулунский муниципальный район","Котикское","25638431"]
[347,"Тулунский муниципальный район","Мугунское","25638437"]
[348,"Тулунский муниципальный район","Нижнебурбукское","25638438"]
[349,"Тулунский муниципальный район","Октябрьское","25638442"]
[350,"Тулунский муниципальный район","Перфиловское","25638443"]
[351,"Тулунский муниципальный район","Писаревское","25638445"]
[352,"Тулунский муниципальный район","Сибирякское","25638444"]
[353,"Тулунский муниципальный район","Тулунский муниципальный район","25638000"]
[354,"Тулунский муниципальный район","Умыганское","25638446"]
[355,"Тулунский муниципальный район","Усть-Кульское","25638449"]
[356,"Тулунский муниципальный район","Шерагульское","25638452"]
[357,"Усольский муниципальный район","Белореченское","25640153"]
[358,"Усольский муниципальный район","Большееланское","25640404"]
[359,"Усольский муниципальный район","Железнодорожное","25640407"]
[360,"Усольский муниципальный район","Мишелевское","25640155"]
[361,"Усольский муниципальный район","Новожилкинское","25640412"]
[362,"Усольский муниципальный район","Новомальтинское","25640414"]
[363,"Усольский муниципальный район","Раздольинское","25640416"]
[364,"Усольский муниципальный район","Сосновское","25640419"]
[365,"Усольский муниципальный район","Среднинское","25640160"]
[366,"Усольский муниципальный район","Тайтурское","25640162"]
[367,"Усольский муниципальный район","Тальянское","25640422"]
[368,"Усольский муниципальный район","Тельминское","25640173"]
[369,"Усольский муниципальный район","Усольский муниципальный район","25640000"]
[370,"Усть-Илимский муниципальный район","Бадарминское","25642401"]
[371,"Усть-Илимский муниципальный район","Ершовское","25642403"]
[372,"Усть-Илимский муниципальный район","Железнодорожное","25642155"]
[373,"Усть-Илимский муниципальный район","Межселенные территории Усть-Илимского муниципального района, расположенные вне границ муниципальных образований Усть-Илимского муниципального района","25642701"]
[374,"Усть-Илимский муниципальный район","Невонское","25642405"]
[375,"Усть-Илимский муниципальный район","Подъеланское","25642404"]
[376,"Усть-Илимский муниципальный район","Седановское","25642407"]
[377,"Усть-Илимский муниципальный район","Тубинское","25642408"]
[378,"Усть-Илимский муниципальный район","Усть-Илимский муниципальный район","25642000"]
[379,"Усть-Илимский муниципальный район","Эдучанское","25642410"]
[380,"Усть-Кутский муниципальный район","Верхнемарковское","25644410"]
[381,"Усть-Кутский муниципальный район","Звезднинское","25644154"]
[382,"Усть-Кутский муниципальный район","Межселенная территория Усть-Кутского муниципального района, на территории которой расположены земли следующих населенных пунктов: с Боярск, с Омолой и др.","25644701"]
[383,"Усть-Кутский муниципальный район","Нийское","25644413"]
[384,"Усть-Кутский муниципальный район","Подымахинское","25644422"]
[385,"Усть-Кутский муниципальный район","Ручейское","25644407"]
[386,"Усть-Кутский муниципальный район","Усть-Кутский муниципальный район","25644000"]
[387,"Усть-Кутский муниципальный район","Усть-Кутское городское поселение","25644101"]
[388,"Усть-Кутский муниципальный район","Янтальское","25644160"]
[389,"Усть-Удинский муниципальный район","Аносовское","25646402"]
[390,"Усть-Удинский муниципальный район","Аталанское","25646404"]
[391,"Усть-Удинский муниципальный район","Балаганкинское","25646407"]
[392,"Усть-Удинский муниципальный район","Игжейское","25646413"]
[393,"Усть-Удинский муниципальный район","Ключинское","25646447"]
[394,"Усть-Удинский муниципальный район","Малышевское","25646422"]
[395,"Усть-Удинский муниципальный район","Молькинское","25646425"]
[396,"Усть-Удинский муниципальный район","Новоудинское","25646428"]
[397,"Усть-Удинский муниципальный район","Подволоченское","25646431"]
[398,"Усть-Удинский муниципальный район","Светлолобовское","25646434"]
[399,"Усть-Удинский муниципальный район","Среднемуйское","25646437"]
[400,"Усть-Удинский муниципальный район","Усть-Удинский муниципальный район","25646000"]
[401,"Усть-Удинский муниципальный район","Усть-Удинское","25646442"]
[402,"Усть-Удинский муниципальный район","Чичковское","25646448"]
[403,"Усть-Удинский муниципальный район","Юголокское","25646446"]
[404,"Черемховский муниципальный район","Алехинское","25648402"]
[405,"Черемховский муниципальный район","Бельское","25648404"]
[406,"Черемховский муниципальный район","Булайское","25648405"]
[407,"Черемховский муниципальный район","Голуметское","25648407"]
[408,"Черемховский муниципальный район","Зерновское","25648410"]
[409,"Черемховский муниципальный район","Каменно-Ангарское","25648412"]
[410,"Черемховский муниципальный район","Лоховское","25648428"]
[411,"Черемховский муниципальный район","Михайловское","25648155"]
[412,"Черемховский муниципальный район","Нижнеиретское","25648416"]
[413,"Черемховский муниципальный район","Новогромовское","25648417"]
[414,"Черемховский муниципальный район","Новостроевское","25648418"]
[415,"Черемховский муниципальный район","Онотское","25648419"]
[416,"Черемховский муниципальный район","Парфеновское","25648422"]
[417,"Черемховский муниципальный район","Саянское","25648425"]
[418,"Черемховский муниципальный район","Тальниковское","25648431"]
[419,"Черемховский муниципальный район","Тунгусское","25648434"]
[420,"Черемховский муниципальный район","Узколугское","25648437"]
[421,"Черемховский муниципальный район","Черемховский муниципальный район","25648000"]
[422,"Черемховский муниципальный район","Черемховское","25648443"]
[423,"Чунский муниципальный район","Балтуринское","25650402"]
[424,"Чунский муниципальный район","Бунбуйское","25650407"]
[425,"Чунский муниципальный район","Веселовское","25650410"]
[426,"Чунский муниципальный район","Каменское","25650414"]
[427,"Чунский муниципальный район","Лесогорское","25650162"]
[428,"Чунский муниципальный район","Межселенные территории Чунского муниципального района, расположенные вне границ муниципальных образований Чунского муниципального района","25650701"]
[429,"Чунский муниципальный район","Мухинское","25650416"]
[430,"Чунский муниципальный район","Новочунское","25650419"]
[431,"Чунский муниципальный район","Октябрьское","25650165"]
[432,"Чунский муниципальный район","Таргизское","25650422"]
[433,"Чунский муниципальный район","Червянское","25650425"]
[434,"Чунский муниципальный район","Чунский муниципальный район","25650000"]
[435,"Чунский муниципальный район","Чунское","25650151"]
[436,"Шелеховский муниципальный район","Баклашинское","25655402"]
[437,"Шелеховский муниципальный район","Большелугское","25655404"]
[438,"Шелеховский муниципальный район","Олхинское","25655407"]
[439,"Шелеховский муниципальный район","Подкаменское","25655408"]
[440,"Шелеховский муниципальный район","Шаманское","25655415"]
[441,"Шелеховский муниципальный район","Шелеховский муниципальный район","25655000"]
[442,"Шелеховский муниципальный район","город Шелехов","25655101"]
[443,"Эхирит-Булагатский муниципальный район","Алужинское","25657401"]
[444,"Эхирит-Булагатский муниципальный район","Ахинское","25657402"]
[445,"Эхирит-Булагатский муниципальный район","Гаханское","25657413"]
[446,"Эхирит-Булагатский муниципальный район","Захальское","25657416"]
[447,"Эхирит-Булагатский муниципальный район","Капсальское","25657419"]
[448,"Эхирит-Булагатский муниципальный район","Корсукское","25657420"]
[449,"Эхирит-Булагатский муниципальный район","Кулункунское","25657422"]
[450,"Эхирит-Булагатский муниципальный район","Ново-Николаевское","25657432"]
[451,"Эхирит-Булагатский муниципальный район","Олойское","25657435"]
[452,"Эхирит-Булагатский муниципальный район","Тугутуйское","25657442"]
[453,"Эхирит-Булагатский муниципальный район","Усть-Ордынское","25657444"]
[454,"Эхирит-Булагатский муниципальный район","Харазаргайское","25657447"]
[455,"Эхирит-Булагатский муниципальный район","Харатское","25657448"]
[456,"Эхирит-Булагатский муниципальный район","Эхирит-Булагатский муниципальный район","25657000"]
[457,"город Братск","город Братск","25714000"]
[458,"город Иркутск","город Иркутск","25701000"]
[459,"город Саянск","город Саянск","25726000"]
[460,"город Свирск","город Свирск","25746000"]
[461,"город Тулун","город Тулун","25732000"]
[462,"город Усолье-Сибирское","город Усолье-Сибирское","25736000"]
[463,"город Усть-Илимск","город Усть-Илимск","25738000"]
[464,"город Черемхово","город Черемхово","25745000"]

{"sheet":"REESTR_MO_FILTER","index":42,"n_rows":0,"n_cols":0,"rows_kept":0,"cut":false,"hidden":true,"merged":[]}

{"sheet":"modfrmReestrMR","index":43,"n_rows":0,"n_cols":0,"rows_kept":0,"cut":false,"hidden":true,"merged":[]}

{"sheet":"modServiceModule","index":44,"n_rows":0,"n_cols":0,"rows_kept":0,"cut":false,"hidden":true,"merged":[]}

{"sheet":"modfrmCheckUpdates","index":45,"n_rows":0,"n_cols":0,"rows_kept":0,"cut":false,"hidden":true,"merged":[]}

{"sheet":"REESTR_DS","index":46,"n_rows":3,"n_cols":2,"rows_kept":3,"cut":false,"hidden":true,"merged":[]}
[]
[]
[null,"город Саянск, город Саянск (25726000);"]

{"sheet":"REESTR_CHS","index":47,"n_rows":0,"n_cols":0,"rows_kept":0,"cut":false,"hidden":true,"merged":[]}

{"sheet":"REESTR_LINK","index":48,"n_rows":3,"n_cols":3,"rows_kept":3,"cut":false,"hidden":true,"merged":[]}
["ID","LINK_NAME","REGION"]
[4189678,"https://portal.eias.ru/Portal/DownloadPage.aspx?type=12&guid=????????-????-????-????-????????????","ALL"]
[4190415,"https://eias.fstrf.ru/disclo/get_file?p_guid=????????-????-????-????-????????????","ALL"]